Cogmind - Beta 9.4 @@@ ROGUE MODE // 2020.03.17 @ 17:13:04 // Winter2019/RPGLIKE Player: Dusanh Result: Establishing 0b11! Performance ------------- Evolutions (9) 4500 Regions Visited (42) 8400 Robots Destroyed (711) 3555 Value Destroyed (36718) 36718 Prototype IDs (183) 3660 Alien Tech Used (7) 1400 Bonus (54142) 54142 TOTAL SCORE: 112375 Bonus ------- High Alert Combat Kills 5607 Follower Combat Kills 13230 Entered Garrisons 200 Used RIF Installer 500 Network Hubs Disabled 400 Aligned with FarCom 300 Met Data Miner 300 Met Imprinter 300 Destroyed Z-Imprinter 1000 Triggered Deep Caves Wall 1000 Met Warlord at Base 500 MAIN.C Attacked Warlord 500 Warlord Defense Kill 780 Built Enhanced Grunts 300 Met R17 at Cetus 500 Met R17 at Research 2000 Met Warlord at Research 2000 Hacked God Mode 5000 Destroyed MAIN.C Guards 500 Met MAIN.C 5000 Destroyed MAIN.C Shell 5000 Destroyed MAIN.C 10000 Win 3000 Friendly Fire -3775 Cogmind --------- Core Integrity 1700/1700 Matter 300/350 Energy 2444/2450 System Corruption 0% Temperature Cool (6) Movement Flying (17) Location 0b11 Command Parts ------- > --- POWER (2) -------- Cooled Deuterium Engine Zero-point Reactor > --- PROPULSION (6) --- Cooled Field Propulsion Drive Cooled Field Propulsion Drive Cooled Field Propulsion Drive Cooled Q-thruster Cooled Q-thruster Cooled Q-thruster > --- UTILITY (10) ----- Experimental Coolant Injector Superbattery Experimental Optical Array Advanced Target Analyzer Advanced Armor Integrity Analyzer Advanced Particle Charger Advanced Reaction Control System Experimental Phase Shifter AEGIS Remote Shield Trap Reconfigurator > --- WEAPON (4) ------- Sigix Quantum Sheargun Sigix Quantum Sheargun Multirail Multirail > --- INVENTORY (11) --- Heavy Regenerative Plating Improved System Restoration Module High-powered Transdimensional Reconstructor Cooled Proton Cannon Cooled Proton Cannon Multirail Multirail Z-bomb Delivery System Sigix Broadsword Peak State ------------ > --- POWER ------------ Improved Quantum Reactor Zero-point Reactor > --- PROPULSION ------- Cooled Field Propulsion Drive Cooled Field Propulsion Drive Cooled Field Propulsion Drive Cooled Q-thruster Cooled Q-thruster Cooled Q-thruster > --- UTILITY ---------- Experimental Coolant Injector Superbattery Experimental Optical Array Advanced Target Analyzer Advanced Armor Integrity Analyzer Advanced Particle Charger Advanced Reaction Control System Experimental Phase Shifter AEGIS Remote Shield Trap Reconfigurator > --- WEAPON ----------- Multirail Multirail Multirail Multirail > --- INVENTORY -------- Protomatter Heavy Regenerative Plating Improved System Restoration Module High-powered Transdimensional Reconstructor Sigix Quantum Sheargun Sigix Quantum Sheargun Cooled Proton Cannon Cooled Proton Cannon Sigix Broadsword [Rating: 221] Favorites ----------- Power Cooled Deuterium Engine Engine Cooled Deuterium Engine Power Core Light Nuclear Core Reactor Zionite Light DM Reactor Propulsion Improved Cesium-ion Thruster Flight Unit Improved Cesium-ion Thruster Utility Experimental Signal Interpreter Device Trap Reconfigurator Storage Superbattery Processor Experimental Signal Interpreter Hackware Improved System Shield Protection Improved Powered Armor Artifact Matter Drive Weapon Cooled Proton Cannon Energy Gun Precision Shock Rifle Energy Cannon Cooled Proton Cannon Ballistic Gun Improved KE Penetrator Ballistic Cannon Mini Assault Cannon Launcher Tesla Bomb Launcher Special Weapon Advanced Remote Datajack Slashing Weapon Ionic Axe Piercing Weapon Makeshift Spear Special Melee Weapon Advanced Datajack Build | -11 -10 -10 -10 -9 -8 -7 -7 -7 -7 -7 -7 -6 -6 -6 -6 -6 -6 -6 -6 -5 -5 -5 -5 -5 -5 -5 -5 -4 -4 -4 -4 -4 -4 -3 -3 -3 -3 -2 -2 -2 -1 -1 ------- Run | Scr Mat Min Exi Min Mat Fac Was Fac Low Low Dat Pro Fac Was Fac Low Low Zio Dee Pro Fac Was Fac Ext Cet Arc Hub Fac Was Fac Upp Upp War Pro Res Tes Gar Res Qua Sec Acc Com Slots Evolved 18 | 2 1 . . 2 1 1 . 2 . . . . . . . . . . 1 . 1 . 1 . 1 . . 1 . . . . . 1 . 1 . 1 . . 1 . Power 1 | . . . . . . . . . . . . . . . . . . . 1 . . . . . . . . . . . . . . . . . . . . . . . Propulsion 5 | . 1 . . 1 . . . 1 . . . . . . . . . . . . 1 . 1 . . . . . . . . . . . . . . . . . . . Utility 9 | 1 . . . 1 1 1 . 1 . . . . . . . . . . . . . . . . . . . 1 . . . . . 1 . 1 . . . . 1 . Weapon 3 | 1 . . . . . . . . . . . . . . . . . . . . . . . . 1 . . . . . . . . . . . . 1 . . . . Parts Attached 738 | 4 8 4 1 8 39 33 10 23 9 4 . 11 40 2 20 7 1 1 41 5 47 2 22 13 20 8 40 32 2 8 2 1 11 15 15 29 16 10 13 20 50 91 Power 21 | 1 3 1 . . 2 2 . 1 . . . . . . . . . . 2 . 2 . . . 4 . . . . . . . . . . . . . . . . 3 Engine 12 | 1 3 . . . 1 2 . 1 . . . . . . . . . . 1 . . . . . 2 . . . . . . . . . . . . . . . . 1 Core 2 | . . 1 . . 1 . . . . . . . . . . . . . . . . . . . . . . . . . . . . . . . . . . . . . Reactor 7 | . . . . . . . . . . . . . . . . . . . 1 . 2 . . . 2 . . . . . . . . . . . . . . . . 2 Propulsion 41 | . 2 1 . 1 11 . . 5 . . . . 1 . 3 . . . . . 3 . 1 . . . 5 1 . . . . . . . . . 1 3 . 3 . Treads . | . . . . . . . . . . . . . . . . . . . . . . . . . . . . . . . . . . . . . . . . . . . Leg . | . . . . . . . . . . . . . . . . . . . . . . . . . . . . . . . . . . . . . . . . . . . Wheel . | . . . . . . . . . . . . . . . . . . . . . . . . . . . . . . . . . . . . . . . . . . . Hover . | . . . . . . . . . . . . . . . . . . . . . . . . . . . . . . . . . . . . . . . . . . . Flight 41 | . 2 1 . 1 11 . . 5 . . . . 1 . 3 . . . . . 3 . 1 . . . 5 1 . . . . . . . . . 1 3 . 3 . Utility 302 | 1 3 2 1 1 9 4 . 4 . . . 1 21 . 2 2 . . 18 . 20 . 8 5 3 1 13 19 2 6 . . 7 5 5 13 7 5 6 20 39 49 Device 219 | 1 1 1 . . 2 1 . . . . . . 11 . 2 1 . . 11 . 17 . 8 3 1 1 11 19 2 5 . . 6 4 4 10 6 3 4 19 31 34 Storage 21 | . 1 . 1 . . . . 1 . . . . 3 . . . . . 1 . 1 . . 2 1 . 2 . . . . . . 1 . 1 1 2 1 . 2 . Processor 13 | . . . . . 1 . . 1 . . . . 1 . . . . . . . . . . . . . . . . . . . . . . . . . . . 1 9 Hackware 13 | . . . . . 1 . . 1 . . . . 2 . . . . . . . . . . . . . . . . 1 . . . . . 2 . . 1 . 5 . Protection 35 | . 1 1 . 1 5 3 . 1 . . . 1 4 . . 1 . . 6 . 2 . . . 1 . . . . . . . 1 . 1 . . . . . . 6 Artifact 1 | . . . . . . . . . . . . . . . . . . . . . . . . . . . . . . . . . . . . . . . . 1 . . Weapon 374 | 2 . . . 6 17 27 10 13 9 4 . 10 18 2 15 5 1 1 21 5 22 2 13 8 13 7 22 12 . 2 2 1 4 10 10 16 9 4 4 . 8 39 Energy Gun 101 | . . . . . 1 13 . 1 3 2 . 3 2 . . 3 . 1 10 3 10 . 1 . 2 2 7 1 . . . . 4 4 5 7 4 . . . . 12 Energy Cannon 52 | . . . . . . . . . . . . . . . . . . . . . . . 2 3 4 2 10 3 . 1 1 . . 2 4 3 3 . 2 . 1 11 Ballistic Gun 94 | 2 . . . 4 10 7 5 6 1 . . . 7 2 7 . . . . . 3 2 6 2 4 2 5 4 . 1 . . . . . 1 . . . . . 13 Ballistic Cannon 2 | . . . . . . 1 . . . . . . . . . . . . . . . . . . . . . . . . . . . . . . . . . . 1 . Launcher 56 | . . . . 2 3 2 2 1 4 1 . 6 2 . 1 2 1 . 8 2 4 . . . 2 . . 1 . . 1 1 . 3 1 1 2 2 . . 1 . Special Weapon 8 | . . . . . . . . . . . . . . . 2 . . . . . . . . . . . . . . . . . . 1 . . . 1 . . 2 2 Impact Weapon . | . . . . . . . . . . . . . . . . . . . . . . . . . . . . . . . . . . . . . . . . . . . Slashing Weapon 51 | . . . . . 3 4 2 5 1 . . 1 5 . 4 . . . 3 . 5 . 4 3 1 1 . 2 . . . . . . . 4 . . 1 . 1 1 Piercing Weapon 3 | . . . . . . . 1 . . 1 . . . . . . . . . . . . . . . . . 1 . . . . . . . . . . . . . . Special Melee Weapon 7 | . . . . . . . . . . . . . 2 . 1 . . . . . . . . . . . . . . . . . . . . . . 1 1 . 2 . Unidentified Prototypes 64 | . . . . . 3 1 1 2 . . . . 3 . 2 . . . 9 . 2 . 1 1 3 . 6 3 . . . . 4 2 1 10 1 . . 1 1 7 Parts Lost 6 | . . 1 . . 1 1 . 1 . . . . . . 1 . . . . . . . . . . . . . . . . . . . . . . . 1 . . . Power 1 | . . . . . . . . 1 . . . . . . . . . . . . . . . . . . . . . . . . . . . . . . . . . . Propulsion 3 | . . . . . 1 . . . . . . . . . 1 . . . . . . . . . . . . . . . . . . . . . . . 1 . . . Utility 2 | . . 1 . . . 1 . . . . . . . . . . . . . . . . . . . . . . . . . . . . . . . . . . . . Weapon . | . . . . . . . . . . . . . . . . . . . . . . . . . . . . . . . . . . . . . . . . . . . Highest Loss Streak 1 | . . 1 . . 1 1 . 1 . . . . . . 1 . . . . . . . . . . . . . . . . . . . . . . . 1 . . . Average Slot Usage (%) 97 | . 87 96 87 82 98 99 100 98 100 100 100 100 99 100 99 100 100 100 98 100 99 100 98 93 93 94 98 99 100 100 100 100 100 99 100 99 98 100 96 94 94 96 Engine 5 | . 10 8 . . 4 9 9 7 7 7 7 7 7 7 7 7 7 7 5 7 6 6 6 6 5 5 5 5 5 5 5 5 5 5 5 5 5 4 4 4 4 3 Reactor 3 | . . . . . . . . . . . . . . . . . . . 6 7 6 6 6 6 5 5 5 5 5 5 5 5 5 5 5 5 5 4 4 4 4 4 Flight 29 | . 15 28 28 26 30 28 27 28 30 30 30 30 30 30 29 30 30 30 28 28 32 33 32 31 29 29 33 34 33 33 33 33 33 31 31 30 30 28 28 28 27 27 Device 15 | . 14 8 14 11 4 13 18 12 7 7 7 7 7 7 9 13 15 15 8 21 18 20 19 17 11 13 14 17 22 22 22 22 22 20 21 20 23 21 14 13 18 22 Storage 3 | . 13 . 2 11 8 . . 2 7 7 7 7 6 7 7 7 7 7 7 7 1 . . . 5 3 1 . . . . . . 4 5 . . 2 3 4 4 4 Processor 6 | . . . . . 5 9 9 7 7 7 7 7 7 7 7 7 7 7 7 7 6 6 6 6 5 5 5 5 5 5 5 5 5 5 5 5 5 4 4 4 4 9 Hackware 8 | . . . . . 8 9 9 12 15 15 15 15 15 15 15 15 15 15 13 7 6 6 6 6 5 5 5 5 5 5 5 5 5 5 5 9 10 9 13 14 11 3 Protection 5 | . 1 16 . . 10 9 9 7 7 7 7 7 6 7 4 1 . . 5 . 5 6 6 6 5 5 5 5 5 5 5 5 5 5 5 5 5 4 4 4 4 2 Energy Gun 3 | . . . . . . 12 . 1 7 12 15 8 1 . . 13 7 8 11 13 9 . 1 . 3 3 1 . . . . . 4 6 5 7 6 4 . . . 7 Energy Cannon 1 | . . . . . . . . . . . . . . . . . . . . . . . . 7 2 4 3 4 5 5 5 1 . . 1 . 1 . 3 4 1 3 Ballistic Gun 4 | . 30 28 28 21 18 4 12 8 3 . . . 5 15 4 . . . . . . 13 5 . 7 3 5 5 5 4 5 5 1 . . . . . . . . 1 Slashing Weapon 3 | . . . . . 1 1 5 6 3 . . 1 6 . 5 . . . . . 2 . 4 4 . 4 5 5 5 5 5 5 5 5 5 4 5 4 4 4 4 2 Naked Turns . | . . . . . . . . . . . . . . . . . . . . . . . . . . . . . . . . . . . . . . . . . . . Heaviest Build 114 | 10 12 13 14 19 22 25 26 30 36 33 31 36 39 37 38 39 29 29 46 43 48 47 52 62 71 66 65 63 57 63 58 58 58 66 70 62 70 71 72 71 72 114 Greatest Support 127 | 8 13 18 18 22 28 28 28 39 39 39 39 39 39 39 45 39 39 39 41 39 50 48 59 59 61 59 67 62 62 66 62 62 62 66 74 74 70 66 74 92 127 127 Greatest Overweight (x) 6 | 1 1 . . . . . . . 2 . . 2 . . . . . . 1 1 2 . . 4 1 1 1 4 . . . . 4 . . 4 4 1 . . . 6 Average Overweight (x) . | . . . . . . . . . . . . . . . . . . . . . . . . . . . . . . . . . . . . . . . . . . . Largest Inventory Capacity 11 | 2 2 3 3 3 6 6 7 7 7 7 7 7 8 8 8 8 8 8 8 8 8 8 8 8 8 8 8 8 8 8 8 8 8 8 8 8 8 8 9 11 11 11 Average Capacity 8 | 2 2 2 3 3 4 6 6 7 7 7 7 7 7 8 8 8 8 8 8 8 8 8 8 8 8 8 8 8 8 8 8 8 8 8 8 8 8 8 8 10 11 11 Most Carried 11 | . 2 3 3 3 6 6 7 7 7 7 7 7 8 8 8 8 8 8 8 8 8 8 8 8 8 8 8 8 8 8 8 8 8 8 8 8 8 8 9 11 11 11 Average Carried 8 | . 1 2 3 2 3 5 6 7 7 7 7 6 7 8 7 7 8 8 7 8 7 8 7 8 7 8 7 7 8 8 8 8 8 7 8 7 7 8 8 10 10 10 Final Capacity 11 | 2 2 3 3 3 6 6 7 7 7 7 7 7 8 8 8 8 8 8 8 8 8 8 8 8 8 8 8 8 8 8 8 8 8 8 8 8 8 8 9 11 11 11 Final Carried 11 | . 2 3 3 3 6 6 7 7 7 7 7 7 8 8 8 8 8 8 8 8 8 8 8 8 8 8 8 8 8 8 8 8 8 8 8 8 8 8 9 11 11 11 Class Distribution -------------------- 41% | Wizard-Scout 31% | Commander-Scout 8% | Hacker-Sprinter 4% | Hacker-Scout Dominant Class ---------------- Mutant | -10/Materials Mutant | -10/Mines Mutant | -10/Exiles Scout | -9/Mines Hacker-Scout | -8/Materials Hacker-Sprinter | -7/Factory Commander-Sprinter | -7/Waste Hacker-Scout | -7/Factory Commander-Scout | -7/Lower Caves Commander-Scout | -7/Lower Caves Commander-Scout | -7/Data Miner Commander-Scout | -6/Proximity Caves Commander-Scout | -6/Factory Wizard-Scout | -6/Waste Commander-Scout | -6/Factory Commander-Scout | -6/Lower Caves Commander-Scout | -6/Lower Caves Commander-Scout | -6/Zion Wizard-Scout | -6/Deep Caves Wizard-Scout | -5/Proximity Caves Wizard-Scout | -5/Factory Commander-Scout | -5/Waste Commander-Scout | -5/Factory Commander-Scout | -5/Extension Commander-Scout | -5/Cetus Commander-Scout | -5/Archives Commander-Scout | -5/Hub_04(d) Commander-Scout | -4/Factory Wizard-Scout | -4/Waste Wizard-Scout | -4/Factory Wizard-Scout | -4/Upper Caves Wizard-Scout | -4/Upper Caves Wizard-Scout | -4/Warlord Wizard-Scout | -3/Proximity Caves Wizard-Scout | -3/Research Wizard-Scout | -3/Testing Wizard-Assassin | -3/Garrison Wizard-Scout | -2/Research Wizard-Scout | -2/Quarantine Wizard-Scout | -2/Section 7 Wizard-Scout | -1/Access Hacker-Sprinter | -1/Command Resources | -11 -10 -10 -10 -9 -8 -7 -7 -7 -7 -7 -7 -6 -6 -6 -6 -6 -6 -6 -6 -5 -5 -5 -5 -5 -5 -5 -5 -4 -4 -4 -4 -4 -4 -3 -3 -3 -3 -2 -2 -2 -1 -1 ----------- Run | Scr Mat Min Exi Min Mat Fac Was Fac Low Low Dat Pro Fac Was Fac Low Low Zio Dee Pro Fac Was Fac Ext Cet Arc Hub Fac Was Fac Upp Upp War Pro Res Tes Gar Res Qua Sec Acc Com Matter Collected 12733 | 252 468 359 . 181 1001 578 370 496 178 60 . 214 478 294 433 124 28 . 522 149 581 283 333 218 294 80 498 320 20 92 58 31 124 248 178 290 181 221 156 330 879 1133 Remotely 127 | 50 67 . . . . . . . . . . . . . . . . . . . . . . . . . . . . . . . . . . . . . . . . 10 Salvage Created 36556 | 62 596 483 . 139 1653 2009 1066 1263 647 373 . 530 1550 . 511 629 79 . 1646 191 2570 98 464 1023 819 . 1428 675 . 148 345 405 324 994 1088 395 1529 279 366 1747 2546 5886 Parts 1839 | 3 36 22 . 6 93 110 25 42 20 12 . 26 79 5 44 22 7 . 42 11 167 7 22 27 41 10 76 32 . 12 8 15 16 36 54 19 49 10 38 56 182 357 Haulers Intercepted 28 | . 2 . . . 5 6 . 6 . . . . 4 . 1 . . . . . . . 1 . . . 2 . . . . . . 1 . . . . . . . . Recyclers Shooed 4 | . . . . . 1 . . 1 . . . . 1 . . . . . . . . . . 1 . . . . . . . . . . . . . . . . . . Parts Field Recycled . | . . . . . . . . . . . . . . . . . . . . . . . . . . . . . . . . . . . . . . . . . . . Retrieved Matter . | . . . . . . . . . . . . . . . . . . . . . . . . . . . . . . . . . . . . . . . . . . . Parts Self-Destructed 161 | . . . . . . . . . 9 13 . 21 . . . 9 8 1 . 6 . . . . . . . . . . 11 11 56 16 . . . . . . . . Prevented 149 | . . . . . . . . . 7 6 . 22 . . . 13 1 . . 5 . . . . . . . . . . 16 15 28 36 . . . . . . . . Kills | -11 -10 -10 -10 -9 -8 -7 -7 -7 -7 -7 -7 -6 -6 -6 -6 -6 -6 -6 -6 -5 -5 -5 -5 -5 -5 -5 -5 -4 -4 -4 -4 -4 -4 -3 -3 -3 -3 -2 -2 -2 -1 -1 ------- Run | Scr Mat Min Exi Min Mat Fac Was Fac Low Low Dat Pro Fac Was Fac Low Low Zio Dee Pro Fac Was Fac Ext Cet Arc Hub Fac Was Fac Upp Upp War Pro Res Tes Gar Res Qua Sec Acc Com Combat Hostiles Destroyed 563 | . 9 16 . 7 29 28 6 10 10 10 . 16 22 1 8 12 3 . 51 9 51 2 4 14 11 3 19 10 . 3 3 8 5 15 15 6 20 3 4 16 37 67 Melee 134 | . . . . . . 1 . 1 1 . . . 15 . 5 . . . . . 8 . 1 7 . . 5 7 . 1 1 . 1 2 5 3 4 . 4 16 36 10 Guns 189 | . 9 16 . 2 26 16 4 5 4 5 . 3 4 1 3 3 . . 9 1 26 2 2 1 3 . . . . 1 . . 2 . 1 3 . . . . . 37 Cannons 27 | . . . . . . . . . . . . . . . . . . . . . . . 1 1 . . 4 1 . . 1 . . 1 1 . 4 . . . . 13 AOE 129 | . . . . 5 3 10 2 3 5 5 . 12 2 . . 6 3 . 36 8 6 . . . . . . . . . . 6 . 5 3 . 6 2 . . 1 . Classes Destroyed 31 | 1 3 1 . 1 5 3 1 1 1 . . . 1 . . . . . 3 . 1 . . . . . . . . . . . 1 1 . 1 . 2 . 1 . 3 Worker 13 | . . . . . 1 4 . . . . . . 1 . . . . . . . 3 . . . . . 1 2 . . . . . . . . . . . . . 1 Builder 7 | . . . . . 1 4 . . . . . . . . 1 . . . . . . . . . . . . . . . . . . . . . . . . . 1 . Hauler 28 | . 2 . . . 5 6 . 6 . . . . 4 . 1 . . . . . . . 1 . . . 2 . . . . . . 1 . . . . . . . . Recycler 7 | 1 1 . . . 1 . . 2 . . . . . . . . . . . . . . 1 1 . . . . . . . . . . . . . . . . . . Carrier 2 | . . . . . . 1 . . . . . . . . . . . . . . . . . . . . . . . . . . . . . . . . . . 1 . Mechanic 2 | . . . . . 1 . . . . . . . . . . . . . . . . . . . . . . . . . . . . 1 . . . . . . . . Operator 4 | . . . . . . . . 1 . . . . . . 1 . . . . . . . . . . . . . . 1 . . . . . 1 . . . . . . Watcher 72 | . 3 . . . 3 5 . 4 . . . . 3 . 3 . . . . . 7 . 4 1 2 . 4 5 . 3 . . . . 2 3 . 2 3 3 11 1 Swarmer 108 | . . 8 . . 3 8 . . . 6 . 8 . . . 3 3 . . 9 16 . 2 . . . . 3 . . . 4 . 4 3 4 8 . 1 4 4 7 Grunt 163 | . 9 8 . 4 18 12 . 5 8 4 . 4 11 . 5 8 . . . . 14 . 1 10 . . 7 . . . 3 4 1 5 5 2 6 . . 1 3 5 Brawler 9 | . . . . . . 1 . . . . . 1 1 . . . . . . . 2 . . . . . 1 . . . . . 1 . 1 . . . . . . 1 Duelist 5 | . . . . . 1 . . . . . . 1 . . . . . . . . . . . . . . 1 . . . . . 1 . . . . . . . . 1 Protector 1 | . . . . . . . . . . . . . . . . . . . . . . . . . . . . . . . . . . . . . . . . . . 1 Researcher 4 | . . . . . . . . . . . . . . . . . . . . . . . . . . . . . . . . . . . . 2 . . . 2 . . Sentry 73 | . . . . . 7 5 . 5 1 . . 2 4 . 2 1 . . . . 9 . . 2 . 3 6 4 . 2 . . . . 2 . 5 . . 7 6 . Demolisher 1 | . . . . . . . . . . . . . . . . . . . . . . . . . . . . . . . . . . . . . . . . . . 1 Hunter 35 | . . . . . . . . . . . . . 3 . 1 . . . . . 2 . . . 3 . 4 2 . . . . . 4 3 . . 1 . . 3 9 Programmer 69 | . . . . . . 2 . . . . . . 3 . . . . . . . 7 1 1 . . . . 1 . 1 . . 1 2 . . . . 4 . 21 25 Behemoth 8 | . . . . . . . . . . . . . . . . . . . . . 1 . . 2 . . . . . . . . . . 1 . 1 . . 1 . 2 Compactor 8 | . . . . . . . 6 . . . . . . 1 . . . . . . . 1 . . . . . . . . . . . . . . . . . . . . Cetus Guard 8 | . . . . . . . . . . . . . . . . . . . . . . . . . 8 . . . . . . . . . . . . . . . . . S7 Guard 1 | . . . . . . . . . . . . . . . . . . . . . . . . . . . . . . . . . . . . . . . . 1 . . M Guard 2 | . . . . . . . . . . . . . . . . . . . . . . . . . . . . . . . . . . . . . . . . . . 2 Lightning 2 | . . . . . . . . . . . . . . . . . . . . . . . . . . . 2 . . . . . . . . . . . . . . . Combat Programmer 2 | . . . . . . . . . . . . . . . . . . . . . . . . . . . . . . . . . . . . . . . . . . 2 Striker 1 | . . . . . . . . . . . . . . . . . . . . . . . . . . . . . . . . . . . . . . . . . . 1 Executioner 4 | . . . . . . . . . . . . . . . . . . . . . . . . . . . . . . . . . 1 . . . . . . . . 3 Alpha 7 4 | . . . . . . . . . . . . . . . . . . . . . . . . . . . . . . . . . . . . . . . . 2 . 2 Z-Technician 1 | . . . . . . . . . . . . . . . . . . . 1 . . . . . . . . . . . . . . . . . . . . . . . Z-Light 8 | . . . . . . . . . . . . . . . . . . . 8 . . . . . . . . . . . . . . . . . . . . . . . Tinkerer 1 | . . . . . . . . . . . . . . . . . . . . . . . . . . . . . . . . . . 1 . . . . . . . . Assembler 2 | . . . . . . . . . . . . . . . . . . . 2 . . . . . . . . . . . . . . . . . . . . . . . Assembled 43 | . . . . 3 . . . . . . . . . . . . . . 40 . . . . . . . . . . . . . . . . . . . . . . . Golem 3 | . . . . . . . . . . . . . . . . . . . 3 . . . . . . . . . . . . . . . . . . . . . . . Thug 1 | . . . . . . . . . . . . . . . . . . . . . . . . . . . . . . . . . . . . . . . . . . 1 Fireman 4 | . . . . . . . . . . . . . . . . . . . . . . . . . . . . . . . . . . . . . . 2 . . . 2 Mutant 3 | . . . . . . . . . 1 . . . . . . . . . . . . . . . . . . . . . . . . . . . . . . . . 2 Hydra 1 | . . . . . . . . . . . . . . . . . . . . . . . . . . . . . . . . . . . . . . 1 . . . . Best Kill Streak 35 | 1 4 5 . 3 6 11 2 5 4 5 . 5 4 1 4 7 3 . 35 5 7 1 2 2 5 3 5 4 . 1 3 4 3 6 4 5 8 3 2 4 5 8 Combat Bots Only 35 | . 4 5 . 3 4 7 2 5 4 5 . 5 3 1 3 7 3 . 35 5 7 1 2 2 4 3 3 3 . 1 3 4 3 5 4 4 8 3 2 4 4 8 Max Kills in Single Turn 15 | 1 1 2 . 3 3 4 1 2 3 2 . 3 3 1 2 2 2 . 15 3 3 1 1 1 2 1 2 1 . 1 1 4 1 3 3 3 4 2 1 1 1 1 Gunslinging 1 | . . 1 . . . . . . . . . . . . . . . . . . 1 . . . . . . . . . . . . . . . . . . . . . Exploded 15 | . . . . 3 2 3 1 2 3 2 . 3 2 . . 2 2 . 15 3 3 . . . . . . . . . . 4 . 3 3 . 4 1 . . 1 . Melee 1 | . . . . . . 1 . 1 1 . . . 1 . 1 . . . . . 1 . 1 1 . . 1 1 . 1 1 . 1 1 1 1 1 . 1 1 1 1 Uniques/NPCs Destroyed 4 | . . . . . . . . . . . . . . . . . . . 1 . . . . . 1 . . . . . . . . . . . . 1 . . . 1 Z-Imprinter (-6/Deep Caves) A7 (-5/Cetus) Warlord (-2/Research) MAIN.C Shell (-1/Command) MAIN.C (-1/Command) Combat | -11 -10 -10 -10 -9 -8 -7 -7 -7 -7 -7 -7 -6 -6 -6 -6 -6 -6 -6 -6 -5 -5 -5 -5 -5 -5 -5 -5 -4 -4 -4 -4 -4 -4 -3 -3 -3 -3 -2 -2 -2 -1 -1 -------- Run | Scr Mat Min Exi Min Mat Fac Was Fac Low Low Dat Pro Fac Was Fac Low Low Zio Dee Pro Fac Was Fac Ext Cet Arc Hub Fac Was Fac Upp Upp War Pro Res Tes Gar Res Qua Sec Acc Com Damage Taken 22114 | . 314 631 . 231 1292 1532 . 582 216 167 . 674 1103 . 460 125 6 . 1091 201 1999 187 327 617 467 22 1111 522 . 363 61 18 91 427 573 121 991 205 575 856 2118 1838 Core 14936 | . 256 436 . 196 901 1073 . 399 160 103 . 444 713 . 314 103 4 . 635 159 1323 115 216 389 307 17 701 333 . 241 37 14 61 256 417 81 650 137 403 650 1494 1198 Absorbed by Shields 965 | . . . . . . . . . . . . . 71 . 6 8 5 . . . . . . 74 . 20 48 . . . . . 86 38 33 . . . . 18 . 558 Redirected to Core 12307 | . 192 331 . 119 701 806 . 343 108 79 . 296 500 . 217 53 4 . 602 148 1108 115 132 302 288 17 605 279 . 207 14 14 43 210 283 81 610 102 386 563 1331 1118 Core Remaining (%) 89 | 100 . . . 75 94 . . . . . . 99 . . . . . . . 65 . . . . . . 78 . . . . . . 100 . . 92 . . 90 . 100 Volleys Fired 1512 | 2 48 54 . 12 129 95 37 42 13 11 . 29 25 33 33 12 3 . 68 9 130 32 16 35 23 3 42 10 . 10 3 3 4 14 16 6 17 4 1 . 39 449 Largest 4 | 2 2 2 . 2 2 2 2 2 2 2 . 2 2 2 2 2 2 . 2 2 2 2 2 2 3 2 2 2 . 2 2 1 2 2 2 2 2 1 2 . 1 4 Hottest 290 | 40 40 40 . 40 50 100 67 53 100 100 . 100 100 58 60 110 98 . 110 110 110 60 95 80 150 240 240 80 . 80 75 46 90 85 80 90 80 46 80 . 50 290 Shots Fired 3051 | 4 96 108 . 20 253 184 74 70 19 19 . 45 41 66 56 15 4 . 119 10 250 64 28 64 43 6 79 15 . 20 4 3 6 17 27 10 29 4 2 . 40 1137 Gun 2416 | 4 96 108 . 16 251 177 70 68 10 15 . 26 38 66 47 6 1 . 98 2 247 64 22 22 18 . 22 . . 8 1 . 4 . 1 10 . . . . . 898 Cannon 442 | . . . . . . . . . . . . . . . . . . . . . . . 6 42 17 6 57 15 . 12 1 . . 4 22 . 26 . 2 . 2 230 Launcher 139 | . . . . 4 2 7 4 2 9 4 . 19 3 . . 9 3 . 21 8 3 . . . 8 . . . . . 2 3 2 13 4 . 3 4 . . 2 . Special 54 | . . . . . . . . . . . . . . . 9 . . . . . . . . . . . . . . . . . . . . . . . . . 36 9 Kinetic 999 | 4 96 108 . 16 251 71 70 66 2 . . . 20 66 47 . . . . . 20 64 16 22 12 . 22 . . 8 1 . . . . . . . . . . 17 Thermal 6 | . . . . . . . . . . . . . . . . . . . . . . . . . 6 . . . . . . . . . . . . . . . . . Explosive 19 | . . . . 4 . . 4 . 3 . . 1 . . . . . . 2 3 . . . . . . . . . . . . . 1 . . . 1 . . . . Electromagnetic 1077 | . . . . . 2 113 . 4 14 19 . 44 21 . . 15 4 . 117 7 230 . 12 42 25 6 57 15 . 12 3 3 2 16 26 . 29 3 2 . 4 230 Slashing 849 | . . . . . . . . . . . . . . . . . . . . . . . . . . . . . . . . . . . . . . . . . . 849 Entropic 47 | . . . . . . . . . . . . . . . . . . . . . . . . . . . . . . . . . 4 . 1 10 . . . . . 32 Robot Hit Streak 51 | 2 11 9 . 6 9 17 13 9 6 9 . 7 12 28 6 8 . . 51 2 35 10 7 15 29 10 28 18 . 13 16 19 25 29 13 4 21 2 . . 20 40 Robot Miss Streak 5 | 1 2 4 . 5 3 4 1 4 1 2 . 3 3 2 4 1 2 . 3 3 2 2 2 3 2 . 1 1 . 1 . . . 3 1 1 2 2 . . 2 5 Penetration Max 2 | . . . . . . . 1 1 . . . . . 1 1 . . . . . 1 . . . 1 . . . . . . . . . . 2 . . . . . 1 Secondary Targets 21 | . . 4 . . 2 1 . . . 1 . . . . . . . . 2 . 6 . 1 . . . . . . . . . . . . . . . . . . 4 Max Gunslinging Chain 1 | . . 1 . . 1 1 . . . 1 . . . . . . . . 1 . 1 . 1 . . . . . . . . . . . . . . . . . . 1 Shots Hit Robots 2543 | 2 71 69 . 10 161 134 59 70 13 13 . 31 96 56 51 11 . . 92 4 225 48 29 65 34 6 73 69 . 34 4 3 10 32 45 19 38 9 34 70 176 577 Core Hits 1217 | 1 29 25 . 18 73 88 15 33 20 19 . 38 49 11 18 17 5 . 116 12 103 5 12 18 25 1 38 20 . 11 5 7 8 24 22 12 25 6 14 26 52 196 Critical Hits 169 | . . 2 . . 1 3 3 1 1 . . 1 3 3 2 1 . . . . 3 . 1 3 3 . 2 4 . 1 . . 1 . . 5 2 . 7 15 38 63 Critical Kills 43 | . . . . . 1 1 2 . 1 . . . 1 . . 1 . . . . 2 . . 1 1 . 1 . . 1 . . 1 . . 1 . . 2 3 13 10 Critical Parts Destroyed 95 | . . 2 . . . 2 . 1 . . . . 2 1 2 . . . . . 1 . 1 1 2 . 1 3 . . . . . . . 4 1 . 3 6 23 39 Melee Attacks 980 | . . . . . 7 17 . 40 6 . . . 87 . 52 . . . 6 . 34 . 19 17 3 3 32 72 . 31 1 . 4 27 27 33 27 9 59 115 208 44 Impact . | . . . . . . . . . . . . . . . . . . . . . . . . . . . . . . . . . . . . . . . . . . . Slashing 957 | . . . . . 7 17 . 40 6 . . . 84 . 50 . . . 6 . 34 . 19 17 3 3 32 72 . 31 1 . 4 27 27 33 27 7 55 109 202 44 Piercing . | . . . . . . . . . . . . . . . . . . . . . . . . . . . . . . . . . . . . . . . . . . . Sneak Attacks 71 | . . . . . 1 . . 6 . . . . 11 . 4 . . . . . 2 . 3 3 . . 3 3 . 1 . . 1 . 2 1 . 2 5 13 10 . Combat Hostiles 20 | . . . . . . . . 1 . . . . 3 . . . . . . . 1 . . 3 . . 2 . . . . . 1 . 2 . . . . 5 2 . Follow-up Attacks . | . . . . . . . . . . . . . . . . . . . . . . . . . . . . . . . . . . . . . . . . . . . Damage Inflicted 115962 | 27 854 831 . 587 3209 3995 1814 3138 1126 731 . 1832 4799 1489 1594 1118 69 . 4821 498 5888 1288 1360 2893 1741 390 3936 3668 . 1719 425 438 623 3366 3297 1518 2399 994 2933 7865 13711 22978 Guns 37956 | 27 854 831 . 119 2688 2291 1316 906 87 269 . 323 667 1489 686 113 . . 1339 18 3853 1288 355 451 338 . . . . 187 . . 135 . 31 494 . . . . . 16801 Cannons 9383 | . . . . . . . . . . . . . . . . . . . . . . . 162 1137 202 390 2078 427 . 343 37 . . 120 663 . 870 . . . . 2954 Explosions 19142 | . . . . 468 380 1482 498 222 864 462 . 1509 488 . . 1005 69 . 3482 480 521 . 16 104 1201 . 456 . . . 322 438 243 1775 870 . 734 582 . . 471 . Melee 49481 | . . . . . 141 222 . 2010 175 . . . 3644 . 908 . . . . . 1514 . 827 1201 . . 1402 3241 . 1189 66 . 245 1471 1733 1024 795 412 2933 7865 13240 3223 Ramming . | . . . . . . . . . . . . . . . . . . . . . . . . . . . . . . . . . . . . . . . . . . . Kinetic 12828 | 27 854 831 . 119 2688 825 1316 894 35 . . . 350 1489 686 . . . . . 261 1288 294 451 197 . . . . 187 . . . . . . . . . . . 36 Thermal 2094 | . . . . . 112 710 . . 81 164 . 141 74 . . 123 . . 196 . 18 . . 104 236 . . . . . . . . . . . 135 . . . . . Explosive 4466 | . . . . 468 . 206 498 . 340 . . . . . . . . . 1760 263 262 . 16 . . . . . . . . . . 80 323 . . 250 . . . . Electromagnetic 29668 | . . . . . 268 2032 . 234 495 567 . 1691 731 . . 995 69 . 2865 235 3833 . 223 1137 1308 390 2534 427 . 343 359 438 243 1815 1210 . 1469 332 . . 471 2954 Impact . | . . . . . . . . . . . . . . . . . . . . . . . . . . . . . . . . . . . . . . . . . . . Slashing 64914 | . . . . . 141 222 . 2010 175 . . . 3644 . 908 . . . . . 1514 . 827 1201 . . 1402 3241 . 1189 66 . 245 1471 1733 1024 795 412 2933 7865 13240 18656 Piercing . | . . . . . . . . . . . . . . . . . . . . . . . . . . . . . . . . . . . . . . . . . . . Entropic 1992 | . . . . . . . . . . . . . . . . . . . . . . . . . . . . . . . . . 135 . 31 494 . . . . . 1332 Highest Corruption 6 | . . . . . 2 2 . 1 . . . 1 2 . . . . . . . 2 6 6 . . . 1 . . . . . . 1 . . 1 . 3 4 5 6 Average Corruption 2 | . . . . . 1 1 . 1 . . . 1 1 . . . . . . . 1 5 4 . . . 1 . . . . . . 1 . . 1 . 2 3 2 2 Corruption Purged 31 | . . . . . . 2 . 1 . . . . 3 . . . . . . . 1 . 6 . . . . . . . . . . . . . . . . . 10 8 Effects 185 | . . . . . 16 9 . 2 . . . 6 9 . . . . . . . 6 16 14 . . . 2 . . . . . . 1 . . 3 . 14 22 14 51 Message Errors 49 | . . . . . 3 4 . 1 . . . . 5 . . . . . . . 3 2 8 . . . 2 . . . . . . . . . 1 . 3 6 3 8 Matter Fused 24 | . . . . . . . . . . . . . . . . . . . . . . 2 5 . . . . . . . . . . . . . . . 5 7 1 4 Heat Flow Errors 12 | . . . . . 1 1 . . . . . . 2 . . . . . . . . 2 . . . . . . . . . . . . . . . . . 3 1 2 Energy Discharges 25 | . . . . . 3 3 . . . . . 1 1 . . . . . . . 3 4 . . . . . . . . . . . . . . 1 . 2 2 2 3 Parts Rejected 1 | . . . . . . . . . . . . . . . . . . . . . . . . . . . . . . . . . . . . . . . . . 1 . Data Loss (minor) 25 | . . . . . 2 . . . . . . 3 1 . . . . . . . . 3 . . . . . . . . . . . . . . 1 . 1 3 4 7 Data Loss (major) 6 | . . . . . . . . . . . . . . . . . . . . . . 2 1 . . . . . . . . . . . . . . . . . . 3 Misfires 1 | . . . . . . . . . . . . . . . . . . . . . . . . . . . . . . . . . . . . . . . . . 1 . Targeting Errors 31 | . . . . . 5 1 . . . . . 1 . . . . . . . . . 1 . . . . . . . . . . . 1 . . . . 3 1 1 17 Weapon Failures 11 | . . . . . 2 . . 1 . . . 1 . . . . . . . . . . . . . . . . . . . . . . . . . . . . . 7 Overload Shots 11 | . . . . . . . . . . . . . . . . . . . . . . . . . . 6 5 . . . . . . . . . . . . . . . Overflow Damage 7009 | . . . . . 6 74 . 210 35 6 . 31 306 . . 10 . . 146 14 194 . 159 169 70 . 94 625 . 490 . . . 287 352 56 91 51 181 1186 1635 531 Projectiles 67 | . . . . . . . . . . . . . . . . . . . . . . . . 28 . . 28 . . . . . . . . . . . . . . 11 Explosions 603 | . . . . . 6 64 . . 35 6 . 31 . . . 10 . . 146 14 4 . . . 70 . 14 . . . . . . 92 15 . 32 . . . 64 . Melee 6339 | . . . . . . 10 . 210 . . . . 306 . . . . . . . 190 . 159 141 . . 52 625 . 490 . . . 195 337 56 59 51 181 1186 1571 520 Knockbacks . | . . . . . . . . . . . . . . . . . . . . . . . . . . . . . . . . . . . . . . . . . . . Impact . | . . . . . . . . . . . . . . . . . . . . . . . . . . . . . . . . . . . . . . . . . . . Kinetic . | . . . . . . . . . . . . . . . . . . . . . . . . . . . . . . . . . . . . . . . . . . . Secondary . | . . . . . . . . . . . . . . . . . . . . . . . . . . . . . . . . . . . . . . . . . . . Self-Inflicted Damage 846 | . . . . 39 94 272 . . . . . 61 . . . . . . 10 41 2 . . . . . 160 . . . . . . 57 . . 88 22 . . . . Shots 27 | . . . . 1 3 6 . . . . . 4 . . . . . . 1 1 1 . . . . . 2 . . . . . . 3 . . 4 1 . . . . Rammed . | . . . . . . . . . . . . . . . . . . . . . . . . . . . . . . . . . . . . . . . . . . . Targets Rammed . | . . . . . . . . . . . . . . . . . . . . . . . . . . . . . . . . . . . . . . . . . . . Kicked . | . . . . . . . . . . . . . . . . . . . . . . . . . . . . . . . . . . . . . . . . . . . Crushed . | . . . . . . . . . . . . . . . . . . . . . . . . . . . . . . . . . . . . . . . . . . . Highest Temperature 479 | . 10 14 . . 222 333 17 12 19 27 . 49 257 . 78 18 10 . 332 62 437 213 458 73 479 330 216 120 7 20 8 18 19 15 226 316 133 330 52 292 198 418 Average Temperature 57 | . 10 7 . . 58 107 6 7 11 10 . 18 68 . 25 9 8 . 94 16 95 62 45 17 129 174 45 23 2 3 2 4 4 3 36 39 30 76 11 56 75 64 Received Heat Transfer 4222 | . 180 267 . 63 702 399 . 165 128 45 . 216 199 . 88 34 . . 275 . 456 . 117 146 . 4 180 96 . 60 9 . . . 31 . 159 20 27 36 99 21 Effects 29 | . . . . . 3 2 . . . . . . . . . . . . 2 . 17 . 1 . 1 . . . . . . . . . 1 2 . . . . . . Shutdowns 3 | . . . . . . . . . . . . . . . . . . . . . 3 . . . . . . . . . . . . . . . . . . . . . Energy Bleed 5 | . . . . . . 1 . . . . . . . . . . . . . . 2 . . . . . . . . . . . . . . 2 . . . . . . Interference 16 | . . . . . 3 1 . . . . . . . . . . . . 1 . 10 . . . . . . . . . . . . . 1 . . . . . . . Matter Decay 1 | . . . . . . . . . . . . . . . . . . . . . 1 . . . . . . . . . . . . . . . . . . . . . Short Circuit 2 | . . . . . . . . . . . . . . . . . . . 1 . . . 1 . . . . . . . . . . . . . . . . . . . Damage (minor) 2 | . . . . . . . . . . . . . . . . . . . . . 1 . . . 1 . . . . . . . . . . . . . . . . . Siege Activations . | . . . . . . . . . . . . . . . . . . . . . . . . . . . . . . . . . . . . . . . . . . . Robots Corrupted 93 | . . . . . . 3 . 1 . . . 1 1 . . 3 . . 6 . 12 . . 6 10 3 12 2 . 1 1 2 1 8 5 . 6 1 . . 1 7 Combat Hostiles 83 | . . . . . . 1 . 1 . . . 1 1 . . 3 . . 6 . 11 . . 5 8 3 10 2 . 1 1 2 1 7 5 . 6 1 . . . 7 Parts Fried 253 | . . . . . . 17 . 2 . 1 . 6 1 . . 8 . . 31 1 30 . . 12 16 4 27 5 . 4 3 4 2 21 14 3 12 . . . 4 25 Impact Corruptions . | . . . . . . . . . . . . . . . . . . . . . . . . . . . . . . . . . . . . . . . . . . . Robots Melted . | . . . . . . . . . . . . . . . . . . . . . . . . . . . . . . . . . . . . . . . . . . . Combat Hostiles . | . . . . . . . . . . . . . . . . . . . . . . . . . . . . . . . . . . . . . . . . . . . Parts Melted 5 | . . . . . 1 1 . . . . . . 1 . . . . . . . . . . . 1 . . . . . . . . . . . 1 . . . . . Heat Transferred 2385 | . . . . . 150 750 . . 100 200 . 200 50 . . 150 . . 150 . 50 . . 100 335 . . . . . . . . . . . 150 . . . . . Parts Sabotaged . | . . . . . . . . . . . . . . . . . . . . . . . . . . . . . . . . . . . . . . . . . . . Parts Stolen . | . . . . . . . . . . . . . . . . . . . . . . . . . . . . . . . . . . . . . . . . . . . Parts Stripped . | . . . . . . . . . . . . . . . . . . . . . . . . . . . . . . . . . . . . . . . . . . . Power Chain Reactions 24 | . . . . . 1 8 . . 1 1 . 4 1 . . 1 . . 2 . 2 . . 1 1 . . . . . . . . . . . 1 . . . . . Missiles Intercepted . | . . . . . . . . . . . . . . . . . . . . . . . . . . . . . . . . . . . . . . . . . . . Alert | -11 -10 -10 -10 -9 -8 -7 -7 -7 -7 -7 -7 -6 -6 -6 -6 -6 -6 -6 -6 -5 -5 -5 -5 -5 -5 -5 -5 -4 -4 -4 -4 -4 -4 -3 -3 -3 -3 -2 -2 -2 -1 -1 ------- Run | Scr Mat Min Exi Min Mat Fac Was Fac Low Low Dat Pro Fac Was Fac Low Low Zio Dee Pro Fac Was Fac Ext Cet Arc Hub Fac Was Fac Upp Upp War Pro Res Tes Gar Res Qua Sec Acc Com Peak Influence 1614 | 5 240 371 . 90 339 453 102 624 . . . . 649 130 880 . . . . . 1129 428 538 478 172 219 695 797 226 619 . . . . 612 777 1614 907 385 580 1409 1280 Average Influence 311 | 2 96 223 . 29 129 206 73 286 . . . . 258 72 304 . . . . . 348 352 246 142 49 167 395 288 123 245 . . . . 247 210 1304 295 185 258 534 399 Maximum Alert Level 5 | . 1 1 . . 1 2 . 2 . . . . 2 . 3 . . . . . 4 2 2 2 . 1 2 3 1 2 . . . . 2 3 5 3 1 2 4 5 Low Security (%) 38 | 100 96 33 . 100 72 54 100 19 . . . . 37 100 50 . . . . . 15 . 40 76 100 28 7 28 51 36 . . . . 47 69 4 23 56 22 15 23 Level 1 37 | . 3 66 . . 27 41 . 67 . . . . 51 . 18 . . . . . 55 43 46 21 . 71 50 58 48 51 . . . . 33 18 1 69 43 70 41 17 Level 2 11 | . . . . . . 3 . 12 . . . . 10 . 21 . . . . . 26 56 12 1 . . 41 8 . 12 . . . . 19 3 1 3 . 6 12 11 Level 3 3 | . . . . . . . . . . . . . . . 9 . . . . . . . . . . . . 4 . . . . . . . 8 16 3 . . 17 7 Level 4 3 | . . . . . . . . . . . . . . . . . . . . . 1 . . . . . . . . . . . . . . . 36 . . . 13 6 Level 5 5 | . . . . . . . . . . . . . . . . . . . . . . . . . . . . . . . . . . . . . 39 . . . . 33 High Security . | . . . . . . . . . . . . . . . . . . . . . . . . . . . . . . . . . . . . . . . . . . . Max Security . | . . . . . . . . . . . . . . . . . . . . . . . . . . . . . . . . . . . . . . . . . . . Squads Dispatched 137 | . 2 . . . 2 5 . 9 . . . 1 6 . 7 . . . . . 9 . 3 . . . 12 5 . 16 . . . . 5 6 . 2 5 6 21 15 Investigation 17 | . . . . . 2 1 . 3 . . . . 1 . . . . . . . 2 . . . . . . . . 2 . . . . 1 . . 1 1 . 2 1 Extermination 51 | . . . . . . 1 . 1 . . . . 4 . 1 . . . . . 4 . 1 . . . 3 5 . 4 . . . . . 2 . . 2 3 7 13 Reinforcement 30 | . 2 . . . . 1 . 4 . . . . 1 . 6 . . . . . 1 . . . . . 2 . . 1 . . . . 4 2 . 1 2 2 1 . Assault 10 | . . . . . . . . . . . . 1 . . . . . . . . 1 . . . . . 1 . . . . . . . . 1 . . . . 5 1 Garrison 29 | . . . . . . 2 . 1 . . . . . . . . . . . . 1 . 2 . . . 6 . . 9 . . . . . 1 . . . 1 6 . Intercept . | . . . . . . . . . . . . . . . . . . . . . . . . . . . . . . . . . . . . . . . . . . . Construction Impeded 5 | . . . . . . . . 1 . . . . . . 3 . . . . . 1 . . . . . . . . . . . . . . . . . . . . . Haulers Reinforced 10 | . . . . . . 1 . 2 . . . . 1 . 1 . . . . . . . . . . . 2 . . . . . . . 1 . . 1 1 . . . Stealth | -11 -10 -10 -10 -9 -8 -7 -7 -7 -7 -7 -7 -6 -6 -6 -6 -6 -6 -6 -6 -5 -5 -5 -5 -5 -5 -5 -5 -4 -4 -4 -4 -4 -4 -3 -3 -3 -3 -2 -2 -2 -1 -1 --------- Run | Scr Mat Min Exi Min Mat Fac Was Fac Low Low Dat Pro Fac Was Fac Low Low Zio Dee Pro Fac Was Fac Ext Cet Arc Hub Fac Was Fac Upp Upp War Pro Res Tes Gar Res Qua Sec Acc Com Distress Signals 62 | . 2 . . . 2 2 . . . . . . 2 . 1 . . . 1 . 2 . 1 1 1 . 1 5 . 2 . . . 1 7 1 . 1 1 4 5 19 Communications Jammed 8 | . . . . . 8 . . . . . . . . . . . . . . . . . . . . . . . . . . . . . . . . . . . . . Distress Signals 8 | . . . . . 8 . . . . . . . . . . . . . . . . . . . . . . . . . . . . . . . . . . . . . Times Spotted 1033 | . 16 20 . 24 41 50 6 31 15 15 . 31 34 7 30 14 1 . 53 8 75 8 24 27 13 3 34 31 . 29 9 8 17 22 21 21 33 25 24 26 99 88 Peak Tracking Total 38 | . 4 6 . 17 4 5 2 6 5 6 . 9 4 2 4 7 2 . 38 5 6 2 4 5 5 2 6 5 . 5 4 5 11 6 4 4 7 10 7 6 6 7 Tactical Retreats 63 | . . 2 . 2 2 7 . . 2 1 . 1 1 . 1 1 . . 2 . 4 . 1 3 . . 1 3 . 3 1 . . 2 . . 4 4 2 3 6 4 Traps | -11 -10 -10 -10 -9 -8 -7 -7 -7 -7 -7 -7 -6 -6 -6 -6 -6 -6 -6 -6 -5 -5 -5 -5 -5 -5 -5 -5 -4 -4 -4 -4 -4 -4 -3 -3 -3 -3 -2 -2 -2 -1 -1 ------- Run | Scr Mat Min Exi Min Mat Fac Was Fac Low Low Dat Pro Fac Was Fac Low Low Zio Dee Pro Fac Was Fac Ext Cet Arc Hub Fac Was Fac Upp Upp War Pro Res Tes Gar Res Qua Sec Acc Com Traps Triggered 19 | . . . . . 1 4 . . . . . . 1 . . . . . . . 1 . . . . . . 1 . . . . . . . . 8 . . . 2 1 Indirectly 3 | . . . . . . 3 . . . . . . . . . . . . . . . . . . . . . . . . . . . . . . . . . . . . Trap Hack Attempts . | . . . . . . . . . . . . . . . . . . . . . . . . . . . . . . . . . . . . . . . . . . . Triggered . | . . . . . . . . . . . . . . . . . . . . . . . . . . . . . . . . . . . . . . . . . . . Disarmed . | . . . . . . . . . . . . . . . . . . . . . . . . . . . . . . . . . . . . . . . . . . . Reprogrammed . | . . . . . . . . . . . . . . . . . . . . . . . . . . . . . . . . . . . . . . . . . . . Reused 103 | . . . . . . 7 . 16 . . . . 6 . 4 . . . . . 29 . 4 2 . . . 8 . 3 . . . . 4 2 . . 1 4 8 5 Traps Reconfigurated 623 | . . . . . . 74 . 90 . . . . 62 . 58 . . . . . 69 . 37 24 . . 8 30 . 40 . . . . 21 12 12 . 7 20 35 24 Traps Extracted . | . . . . . . . . . . . . . . . . . . . . . . . . . . . . . . . . . . . . . . . . . . . Installed . | . . . . . . . . . . . . . . . . . . . . . . . . . . . . . . . . . . . . . . . . . . . Triggered 114 | . . . . . . 7 . 16 . . . . 9 . 4 . . . . . 29 . 4 2 . . . 8 . 3 . . 9 1 4 2 . . 1 4 9 2 Machines | -11 -10 -10 -10 -9 -8 -7 -7 -7 -7 -7 -7 -6 -6 -6 -6 -6 -6 -6 -6 -5 -5 -5 -5 -5 -5 -5 -5 -4 -4 -4 -4 -4 -4 -3 -3 -3 -3 -2 -2 -2 -1 -1 ---------- Run | Scr Mat Min Exi Min Mat Fac Was Fac Low Low Dat Pro Fac Was Fac Low Low Zio Dee Pro Fac Was Fac Ext Cet Arc Hub Fac Was Fac Upp Upp War Pro Res Tes Gar Res Qua Sec Acc Com Machines Disabled 150 | . . . . . 1 8 . 7 2 2 . 2 1 . 3 . . . 1 . 3 . 7 2 . 2 14 8 . 1 . . . 3 1 12 5 2 1 20 2 40 Max in Single Turn 7 | . . . . . 1 2 . . 1 2 . 1 . . 1 . . . 1 . 1 . 6 . . . 7 4 . . . . . 1 1 1 1 1 1 1 . 2 Garrison Access 13 | . . . . . . 2 . 3 . . . . 2 . 2 . . . . . 3 . 1 . . . . . . . . . . . . . . . . . . . Garrison Relay 4 | . . . . . . . . . . . . . . . . . . . . . . . . . . . . . . . . . . . . . 4 . . . . . Phase Generator 1 | . . . . . . . . . . . . . . . . . . . . . . . . . . . . . . . . . . . . . . . . . . 1 Network Hub 2 | . . . . . . . . . . . . . . . . . . . . . . . . . . . 2 . . . . . . . . . . . . . . . Machines Sabotaged . | . . . . . . . . . . . . . . . . . . . . . . . . . . . . . . . . . . . . . . . . . . . Garrisons Compromised . | . . . . . . . . . . . . . . . . . . . . . . . . . . . . . . . . . . . . . . . . . . . Overloaded Fab Kills . | . . . . . . . . . . . . . . . . . . . . . . . . . . . . . . . . . . . . . . . . . . . Fab Network Shutdowns 7 | . . . . . . . . . . . . . 1 . 1 . . . . . 1 . . . . . . 1 . 1 . . . . . 1 . . . . 1 . Hacking | -11 -10 -10 -10 -9 -8 -7 -7 -7 -7 -7 -7 -6 -6 -6 -6 -6 -6 -6 -6 -5 -5 -5 -5 -5 -5 -5 -5 -4 -4 -4 -4 -4 -4 -3 -3 -3 -3 -2 -2 -2 -1 -1 --------- Run | Scr Mat Min Exi Min Mat Fac Was Fac Low Low Dat Pro Fac Was Fac Low Low Zio Dee Pro Fac Was Fac Ext Cet Arc Hub Fac Was Fac Upp Upp War Pro Res Tes Gar Res Qua Sec Acc Com Machines Accessed 301 | . 7 . 3 . 16 16 . 20 2 3 4 . 17 . 17 1 . . . . 23 . 9 6 3 . 16 13 . 16 . 1 7 1 13 10 . 7 14 20 24 12 Terminals 213 | . 7 . . . 11 11 . 16 . 1 . . 11 . 12 . . . . . 16 . 6 6 3 . 14 9 . 12 . 1 . . 8 7 . 4 12 17 17 12 Fabricators 17 | . . . . . . 2 . . . . . . 2 . 1 . . . . . 2 . 1 . . . . 2 . 1 . . . . 3 1 . 1 . . 1 . Repair Stations 6 | . . . . . 2 1 . 1 . . . . . . . . . . . . 2 . . . . . . . . . . . . . . . . . . . . . Recycling Units 5 | . . . . . 2 . . . . . . . 1 . 2 . . . . . . . . . . . . . . . . . . . . . . . . . . . Scanalyzers 6 | . . . . . 1 . . . . . . . . . . . . . . . . . 1 . . . . . . . . . . . . 1 . . 1 2 . . Garrison Access 34 | . . . . . . 2 . 3 . . . . 3 . 2 . . . . . 3 . 1 . . . 2 2 . 3 . . . . 2 1 . 2 1 1 6 . Total Hacks 1554 | . 32 . 32 . 64 64 . 74 11 8 28 . 86 . 89 1 . . . . 90 . 52 31 11 . 75 93 . 107 . 1 15 1 73 67 . 38 67 101 151 92 Successful 1170 | . 26 . 32 . 51 46 . 44 11 8 28 . 65 . 66 1 . . . . 62 . 40 20 10 . 54 64 . 86 . 1 15 1 60 54 . 23 60 80 108 54 Failed 383 | . 6 . . . 13 18 . 30 . . . . 21 . 23 . . . . . 28 . 12 11 1 . 21 29 . 21 . . . . 13 13 . 14 7 21 43 38 Catastrophic 64 | . . . . . . 2 . 8 . . . . . . 5 . . . . . 5 . 2 3 . . 2 6 . 3 . . . . 1 . . 2 3 7 9 6 Database Lockouts 1 | . . . . . . . . . . . . . . . . . . . . . . . . . . . . . . . . . . . . . . 1 . . . . Manual 1007 | . 21 . 1 . 38 38 . 44 . 2 . . 56 . 53 . . 4 . . 62 . 32 31 12 . 64 72 . 69 . . 1 1 47 45 . 19 52 59 116 68 Terminals 1233 | . 32 . . . 48 50 . 65 . 6 . . 75 . 82 . . . . . 69 . 40 31 11 . 64 79 . 84 . 1 . . 61 53 . 25 58 94 113 92 Fabricators 78 | . . . . . . 7 . . . . . . 7 . 2 . . . . . 7 . 8 . . . . 11 . 8 . . . . 10 8 . 3 . . 7 . Repair Stations 26 | . . . . . 9 4 . 4 . . . . . . . . . . . . 9 . . . . . . . . . . . . . . . . . . . . . Recycling Units 9 | . . . . . 5 . . . . . . . 1 . 3 . . . . . . . . . . . . . . . . . . . . . . . . . . . Scanalyzers 8 | . . . . . 2 . . . . . . . . . . . . . . . . . 2 . . . . . . . . . . . . 1 . . 1 2 . . Garrison Access 110 | . . . . . . 3 . 5 . . . . 3 . 2 . . . . . 5 . 2 . . . 11 3 . 15 . . . . 2 5 . 10 8 5 31 . Terminal Hacks 544 | . 14 . 32 . 18 17 . 17 11 7 28 . 30 . 33 1 . . . . 20 . 13 10 6 . 16 27 . 38 . 1 15 1 29 22 . 15 24 35 39 25 Record 85 | . 1 . 31 . . . . . 10 4 11 . . . . 1 . . . . . . . . . . . . . 1 . 1 13 1 3 1 . 1 3 . 3 . Part Schematic 33 | . . . . . . 1 . 1 . . 8 . 4 . 1 . . . . . 2 . 1 2 . . . 4 . . . . . . . 1 . 2 . 4 2 . Robot Schematic 17 | . . . . . . 1 . . . . 6 . 1 . . . . . . . 1 . . . . . . . . 4 . . . . 1 1 . . 1 . 1 . Robot Analysis 20 | . . . . . 1 4 . 1 . . . . 1 . 3 . . . . . 1 . . . . . 1 . . 1 . . . . 2 . . . 1 2 1 1 Prototype ID Bank 39 | . 3 . . . 3 1 . . . . 3 . 1 . 1 . . . . . . . . . . . 2 1 . 6 . . . . 2 3 . 2 1 2 5 3 Open Door 11 | . . . . . . . . . 1 2 . . . . . . . . . . . . . 1 . . . . . . . . 2 . . . . . . 4 . 1 Level Access Points 2 | . . . . . . . . . . . . . . . . . . . . . . . . . . . . . . 1 . . . . . . . . . 1 . . Branch Access Points 9 | . 1 . . . 1 1 . . . . . . . . 1 . . . . . . . . . . . . 1 . 1 . . . . 1 1 . . . . 1 . Emergency Access Points 2 | . . . . . . . . . . . . . . . . . . . . . . . . . . . . . . . . . . . . . . . . 1 . 1 Machine Index 8 | . . . . . . . . 1 . . . . . . . . . . . . . . 1 . . . 1 . . 1 . . . . . . . . 1 1 1 1 Terminal Index 17 | . 1 . . . 1 1 . 1 . . . . . . 1 . . . . . 1 . 1 1 . . 1 1 . 1 . . . . 1 1 . . 1 1 1 1 Fabricator Index 9 | . . . . . . . . . . . . . . . 1 . . . . . . . 1 . . . . 1 . 1 . . . . 1 1 . 1 . 1 1 . Repair Station Index 2 | . . . . . 1 . . . . . . . . . . . . . . . . . . . . . . 1 . . . . . . . . . . . . . . Garrison Index 5 | . . . . . . . . . . . . . . . 1 . . . . . . . . . . . . 1 . . . . . . 1 . . . 1 . 1 . Alert Level 44 | . . . . . 1 . . . . . . . 4 . 4 . . . . . 4 . 1 . 2 . 3 5 . 6 . . . . 7 1 . 2 3 1 . . Unreport Threat 132 | . 1 . . . 5 5 . 8 . . . . 8 . 9 . . . . . 7 . 6 6 4 . 7 6 . 9 . . . . 5 8 . 6 5 9 10 8 Locate Traps 11 | . 2 . . . 1 . . . . . . . . . . . . . . . . . . . . . . . . . . . . . 1 . . . 2 2 . 3 Dispatch Records 1 | . . . . . . . . . . . . . . . . . . . . . . . . . . . . 1 . . . . . . . . . . . . . . Security Status 3 | . . . . . . . . . . . . . 1 . . . . . . . . . . . . . . . . 1 . . . . . . . . . . . 1 Surveillance Status 2 | . 1 . . . . . . . . . . . . . . . . . . . . . . . . . . 1 . . . . . . . . . . . . . . Patrol Status 2 | . . . . . . . . . . . . . . . . . . . . . . . . . . . . . . . . . . . . . . . . . . 2 Extermination Status 1 | . . . . . . . . . . . . . . . . . . . . . . . . . . . . . . 1 . . . . . . . . . . . . Recall Investigation 5 | . . . . . 1 . . . . . . . 1 . . . . . . . 1 . . . . . . . . . . . . . . . . . . . 2 . Recall Extermination 7 | . . . . . . . . . . . . . . . . . . . . . . . . . . . . 2 . 1 . . . . . . . . . 2 2 . Recall Reinforcements 17 | . . . . . . 1 . 1 . . . . 2 . 5 . . . . . 1 . . . . . . . . . . . . . 1 1 . . 3 1 1 . Recall Assault 5 | . . . . . . . . . . . . . . . . . . . . . 1 . . . . . . . . . . . . . . 1 . . . . 3 . Hauler Manifests 16 | . 1 . . . 1 . . . . . . . 1 . 1 . . . . . . . 2 . . . 1 1 . 1 . . . . 1 . . 1 1 2 2 . Registered Components 8 | . . . . . . . . 1 . . . . 1 . 1 . . . . . . . . . . . . . . 1 . . . . . 1 . . . 1 1 1 Registered Prototypes 8 | . 1 . . . . 1 . . . . . . . . 1 . . . . . . . . . . . . 1 . 1 . . . . 1 1 . . . . 1 . Zone Layout 20 | . 2 . . . 2 1 . 3 . 1 . . 5 . 3 . . . . . 1 . . . . . . . . . . . . . 1 . . . 1 . . . EX-Prototype ID Bank 1 | . . . 1 . . . . . . . . . . . . . . . . . . . . . . . . . . . . . . . . . . . . . . . Disengage Seal 2 | . . . . . . . . . . . . . . . . . . . . . . . . . . . . . . . . . . . . . . . . . . 2 Fabricator Hacks 62 | . . . . . . 5 . . . . . . 7 . 2 . . . . . 5 . 7 . . . . 9 . 6 . . . . 6 7 . 2 . . 6 . Network Status 5 | . . . . . . . . . . . . . . . . . . . . . 1 . 1 . . . . . . . . . . . 1 1 . . . . 1 . Load Schematic 25 | . . . . . . 2 . . . . . . 3 . 1 . . . . . 2 . 3 . . . . 4 . 3 . . . . 1 3 . 1 . . 2 . Build 32 | . . . . . . 3 . . . . . . 4 . 1 . . . . . 2 . 3 . . . . 5 . 3 . . . . 4 3 . 1 . . 3 . Repair Station Hacks 22 | . . . . . 8 4 . 2 . . . . . . . . . . . . 8 . . . . . . . . . . . . . . . . . . . . . Scan Component 11 | . . . . . 4 2 . 1 . . . . . . . . . . . . 4 . . . . . . . . . . . . . . . . . . . . . Repair 11 | . . . . . 4 2 . 1 . . . . . . . . . . . . 4 . . . . . . . . . . . . . . . . . . . . . Recycling Unit Hacks 9 | . . . . . 5 . . . . . . . 1 . 3 . . . . . . . . . . . . . . . . . . . . . . . . . . . Process 1 | . . . . . 1 . . . . . . . . . . . . . . . . . . . . . . . . . . . . . . . . . . . . . Report Inventory 5 | . . . . . 2 . . . . . . . 1 . 2 . . . . . . . . . . . . . . . . . . . . . . . . . . . Retrieve Matter 1 | . . . . . 1 . . . . . . . . . . . . . . . . . . . . . . . . . . . . . . . . . . . . . Retrieve Components 2 | . . . . . 1 . . . . . . . . . 1 . . . . . . . . . . . . . . . . . . . . . . . . . . . Scanalyzer 4 | . . . . . 2 . . . . . . . . . . . . . . . . . 2 . . . . . . . . . . . . . . . . . . . Insert Component 2 | . . . . . 1 . . . . . . . . . . . . . . . . . 1 . . . . . . . . . . . . . . . . . . . Analyze 2 | . . . . . 1 . . . . . . . . . . . . . . . . . 1 . . . . . . . . . . . . . . . . . . . Garrison Access Hacks 20 | . . . . . . 2 . 3 . . . . 2 . 2 . . . . . 3 . 1 . . . . . . . . . . . . 1 . 1 1 1 3 . Unlock Access 1 | . . . . . . . . . . . . . . . . . . . . . . . . . . . . . . . . . . . . 1 . . . . . . Seal Access 13 | . . . . . . 2 . 3 . . . . 2 . 2 . . . . . 3 . 1 . . . . . . . . . . . . . . . . . . . Coupler Status 6 | . . . . . . . . . . . . . . . . . . . . . . . . . . . . . . . . . . . . . . 1 1 1 3 . Unauthorized Hacks 1078 | . 27 . . . 42 40 . 47 . 2 . . 54 . 52 . . . . . 56 . 38 20 8 . 81 61 . 86 . . . . 52 50 . 15 70 90 126 61 Terminals 422 | . 12 . . . 18 16 . 22 . 1 . . 24 . 26 . . . . . 24 . 15 10 4 . 30 23 . 28 . . . . 21 18 . . 27 38 36 29 Track 175 | . 4 . . . 7 5 . 9 . 1 . . 11 . 11 . . . . . 10 . 6 5 2 . 13 9 . 12 . . . . 8 6 . . 11 17 16 12 Assimilate 51 | . 2 . . . 1 5 . 3 . . . . 1 . 2 . . . . . 2 . 2 . . . 3 4 . 3 . . . . 4 5 . . 4 3 3 4 Botnet 179 | . 5 . . . 9 6 . 9 . . . . 11 . 11 . . . . . 11 . 6 5 2 . 13 9 . 12 . . . . 8 6 . . 11 17 16 12 Operators 17 | . 1 . . . 1 . . 1 . . . . 1 . 2 . . . . . 1 . 1 . . . 1 1 . 1 . . . . 1 1 . . 1 1 1 1 Fabricators 12 | . . . . . . 2 . . . . . . . . . . . . . . 2 . 1 . . . . 2 . 1 . . . . 2 1 . 1 . . . . Prioritize 12 | . . . . . . 2 . . . . . . . . . . . . . . 2 . 1 . . . . 2 . 1 . . . . 2 1 . 1 . . . . Repair Stations . | . . . . . . . . . . . . . . . . . . . . . . . . . . . . . . . . . . . . . . . . . . . Recycling Units . | . . . . . . . . . . . . . . . . . . . . . . . . . . . . . . . . . . . . . . . . . . . Scanalyzers 4 | . . . . . . . . . . . . . . . . . . . . . . . . . . . . . . . . . . . . 1 . . 1 2 . . Researchers 4 | . . . . . . . . . . . . . . . . . . . . . . . . . . . . . . . . . . . . 1 . . 1 2 . . Garrison Access 67 | . . . . . . . . . . . . . 1 . . . . . . . . . 1 . . . 8 3 . 13 . . . . 2 4 . 4 7 3 21 . Restock 7 | . . . . . . . . . . . . . . . . . . . . . . . . . . . . . . . . . . . . . . 1 1 . 5 . Reprogram 59 | . . . . . . . . . . . . . 1 . . . . . . . . . 1 . . . 8 3 . 13 . . . . 2 4 . 3 5 3 16 . Watchers 1 | . . . . . . . . . . . . . . . . . . . . . . . . . . . . . . . . . . . . . . . 1 . . . Data Cores Recovered . | . . . . . . . . . . . . . . . . . . . . . . . . . . . . . . . . . . . . . . . . . . . Used . | . . . . . . . . . . . . . . . . . . . . . . . . . . . . . . . . . . . . . . . . . . . Hacking Detections 174 | . 6 . . . 13 11 . 17 . 1 . . 10 . 12 . . . . . 17 . 6 2 1 . 8 7 . 8 . . . . 8 4 . 4 7 10 16 6 Full Trace Events 12 | . . . . . 3 1 . 3 . . . . 1 . . . . . . . 2 . . . . . . . . 1 . . . . . . . . 1 . . . Feedback Events 2 | . . . . . . 1 . . . . . . 1 . . . . . . . . . . . . . . . . . . . . . . . . . . . . . Corruption 2 | . . . . . . 1 . . . . . . 1 . . . . . . . . . . . . . . . . . . . . . . . . . . . . . Feedback Blocked . | . . . . . . . . . . . . . . . . . . . . . . . . . . . . . . . . . . . . . . . . . . . Robot Schematics Acquired 17 | . . . . . . 1 . . . . 6 . 1 . . . . . . . 1 . . . . . . . . 4 . . . . 1 1 . . 1 . 1 . Robots Built 17 | . . . . . . 3 . . . . . . 3 . 1 . . . . . 1 . . . . . . . . 3 . . . . 2 4 . . . . . . Matter 4452 | . . . . . . 657 . . . . . . 636 . 318 . . . . . 351 . . . . . . . . 735 . . . . 735 1020 . . . . . . Time 1511 | . . . . . . 290 . . . . . . 168 . 56 . . . . . 187 . . . . . . . . 148 . . . . 297 365 . . . . . . Total Robot Build Rating 106 | . . . . . . 9 . . . . . . 18 . 6 . . . . . 7 . . . . . . . . 23 . . . . 15 28 . . . . . . Part Schematics Acquired 34 | . . . . . 1 1 . 1 . . 8 . 4 . 1 . . . . . 2 . 2 2 . . . 3 . . . . . . . 1 . 2 . 4 2 . Parts Built 16 | . . . . . . . . . . . . . 1 . . . . . . . 1 . 4 . . . . 4 . 1 . . . . . . . 1 . . 4 . Matter 4161 | . . . . . . . . . . . . . 212 . . . . . . . 351 . 859 . . . . 925 . 351 . . . . . . . 417 . . 1046 . Time 1324 | . . . . . . . . . . . . . 53 . . . . . . . 93 . 272 . . . . 408 . 93 . . . . . . . 222 . . 183 . Total Part Build Rating 111 | . . . . . . . . . . . . . 6 . . . . . . . 7 . 23 . . . . 29 . 7 . . . . . . . 9 . . 30 . Parts Repaired 11 | . . . . . 4 2 . 1 . . . . . . . . . . . . 4 . . . . . . . . . . . . . . . . . . . . . Time 302 | . . . . . 134 49 . 20 . . . . . . . . . . . . 99 . . . . . . . . . . . . . . . . . . . . . Parts Recycled . | . . . . . . . . . . . . . . . . . . . . . . . . . . . . . . . . . . . . . . . . . . . Recycled Matter 262 | . . . . . 262 . . . . . . . . . . . . . . . . . . . . . . . . . . . . . . . . . . . . . Retrieved Matter 312 | . . . . . 312 . . . . . . . . . . . . . . . . . . . . . . . . . . . . . . . . . . . . . Retrieved Components 20 | . . . . . 10 . . . . . . . . . 10 . . . . . . . . . . . . . . . . . . . . . . . . . . . Parts Scanalyzed 2 | . . . . . 1 . . . . . . . . . . . . . . . . . 1 . . . . . . . . . . . . . . . . . . . Part Schematics Acquired 2 | . . . . . 1 . . . . . . . . . . . . . . . . . 1 . . . . . . . . . . . . . . . . . . . Parts Damaged 1 | . . . . . 1 . . . . . . . . . . . . . . . . . . . . . . . . . . . . . . . . . . . . . Bothacking | -11 -10 -10 -10 -9 -8 -7 -7 -7 -7 -7 -7 -6 -6 -6 -6 -6 -6 -6 -6 -5 -5 -5 -5 -5 -5 -5 -5 -4 -4 -4 -4 -4 -4 -3 -3 -3 -3 -2 -2 -2 -1 -1 ------------ Run | Scr Mat Min Exi Min Mat Fac Was Fac Low Low Dat Pro Fac Was Fac Low Low Zio Dee Pro Fac Was Fac Ext Cet Arc Hub Fac Was Fac Upp Upp War Pro Res Tes Gar Res Qua Sec Acc Com Used RIF Installer 1 | . . . . . . . . . . . . . . . . . . . . . . . . . . . . . . . . . . . . . 1 . . . . . Robots Hacked 45 | . . . . . . . . . . . . . 3 . 7 . . . . . . . . . . . . . . . . . . . . . . 1 3 4 23 4 Non-combat 27 | . . . . . . . . . . . . . 3 . 7 . . . . . . . . . . . . . . . . . . . . . . . 2 3 12 . Combat 16 | . . . . . . . . . . . . . . . . . . . . . . . . . . . . . . . . . . . . . . 1 1 1 11 2 Robot Hacks Applied 47 | . . . . . . . . . . . . . 3 . 7 . . . . . . . . . . . . . . . . . . . . . . 1 4 4 26 2 parse_system 2 | . . . . . . . . . . . . . . . 1 . . . . . . . . . . . . . . . . . . . . . . 1 . . . . no_distress 3 | . . . . . . . . . . . . . 1 . 2 . . . . . . . . . . . . . . . . . . . . . . . . . . . find_chute 1 | . . . . . . . . . . . . . 1 . . . . . . . . . . . . . . . . . . . . . . . . . . . . . ignore_repairs 6 | . . . . . . . . . . . . . . . . . . . . . . . . . . . . . . . . . . . . . . . 1 3 2 . drop_inventory 4 | . . . . . . . . . . . . . . . . . . . . . . . . . . . . . . . . . . . . . . . 1 . 3 . find_recycling 5 | . . . . . . . . . . . . . 1 . 4 . . . . . . . . . . . . . . . . . . . . . . . . . . . ignore_parts 2 | . . . . . . . . . . . . . . . . . . . . . . . . . . . . . . . . . . . . . . . . . 2 . purge_threat 3 | . . . . . . . . . . . . . . . . . . . . . . . . . . . . . . . . . . . . . . . . . 3 . block_reporting 1 | . . . . . . . . . . . . . . . . . . . . . . . . . . . . . . . . . . . . . . . . . 1 . map_route 1 | . . . . . . . . . . . . . . . . . . . . . . . . . . . . . . . . . . . . . . . . . 1 . disable_scanner 1 | . . . . . . . . . . . . . . . . . . . . . . . . . . . . . . . . . . . . . . . 1 . . . locate_prototypes 2 | . . . . . . . . . . . . . . . . . . . . . . . . . . . . . . . . . . . . . . . 1 1 . . overload_power 2 | . . . . . . . . . . . . . . . . . . . . . . . . . . . . . . . . . . . . . . . . . 2 . overwrite_iff 3 | . . . . . . . . . . . . . . . . . . . . . . . . . . . . . . . . . . . . . . . . . 3 . formatsys_low 1 | . . . . . . . . . . . . . . . . . . . . . . . . . . . . . . . . . . . . . . . . . 1 . formatsys_high 10 | . . . . . . . . . . . . . . . . . . . . . . . . . . . . . . . . . . . . . . . . . 8 2 Manual 3 | . . . . . . . . . . . . . . . . . . . . . . . . . . . . . . . . . . . . . . 1 . . . 2 Relay Couplers Released 23 | . . . . . . . . . . . . . . . . . . . . . . . . . . . . 1 . . . . . . . . 8 2 2 . 10 . Machine Destruction 8 | . . . . . . . . . . . . . . . . . . . . . . . . . . . . . . . . . . . . . 8 . . . . . Programmers 15 | . . . . . . . . . . . . . . . . . . . . . . . . . . . . 1 . . . . . . . . . 2 2 . 10 . Attached 6 | . . . . . . . . . . . . . . . . . . . . . . . . . . . . . . . . . . . . . . . 1 . 5 . Robots Rewired 46 | . . . . . . . . . 5 . . 2 . . . . . . . . 3 . . 21 . . . 2 . . 1 . 5 . . 1 6 . . . . . Allies Hacked 25 | . . . . . . . . . . . . . . . . . . . . . . 2 . . . . 1 4 . . 1 1 1 3 . . . 1 2 . 4 5 Hacks Repelled 8 | . . . . . . . . . . . . . . . . . . . . . . . . 1 . . . 1 . . . . 1 4 . . . . 1 . . . Allies | -11 -10 -10 -10 -9 -8 -7 -7 -7 -7 -7 -7 -6 -6 -6 -6 -6 -6 -6 -6 -5 -5 -5 -5 -5 -5 -5 -5 -4 -4 -4 -4 -4 -4 -3 -3 -3 -3 -2 -2 -2 -1 -1 -------- Run | Scr Mat Min Exi Min Mat Fac Was Fac Low Low Dat Pro Fac Was Fac Low Low Zio Dee Pro Fac Was Fac Ext Cet Arc Hub Fac Was Fac Upp Upp War Pro Res Tes Gar Res Qua Sec Acc Com Total Allies 323 | . 1 1 . 1 1 8 19 2 5 . . 3 4 20 3 . . 2 . . 6 21 3 28 5 . 16 13 20 26 2 . 6 1 8 16 6 8 10 6 44 8 Largest Group 40 | . 1 1 . 1 1 8 27 28 19 19 18 21 20 37 37 21 18 20 12 11 13 33 34 40 19 19 25 21 36 25 20 20 19 8 10 23 17 16 17 10 20 11 Highest-Rated Group 1492 | . 10 31 . 31 31 116 603 629 463 463 432 584 637 1293 1293 686 598 650 445 416 512 1334 1360 1431 1016 1016 1335 950 1477 991 744 743 829 378 507 1281 1097 1114 1352 917 1492 1159 Highest-Rated Ally 367 | . 10 31 . 31 31 26 35 35 33 33 33 94 94 94 85 60 60 60 60 60 60 129 125 156 149 94 109 90 80 90 90 90 90 89 89 123 123 367 326 326 309 309 Total Orders 708 | . 3 . . . 16 29 7 23 9 5 2 20 45 19 12 4 4 21 12 2 56 25 15 46 8 4 31 28 4 27 14 1 8 6 18 24 6 20 15 10 56 53 STAY 158 | . 1 . . . 2 7 . 5 3 2 1 4 9 . 2 1 1 2 6 1 18 2 5 10 4 1 9 6 2 7 . . 2 1 4 5 2 5 5 6 8 9 GOTO 226 | . 1 . . . 7 7 5 6 1 . . 2 11 15 2 . 1 19 . . 16 14 2 22 1 1 5 11 . 9 2 . 3 1 4 4 1 10 2 . 22 19 ROAM 2 | . . . . . 1 . . . . . . . . . . . . . . . . . . 1 . . . . . . . . . . . . . . . . . . FOLLOW 237 | . 1 . . . 6 12 1 11 4 2 1 7 20 1 7 1 2 . 4 1 21 4 6 8 3 2 14 11 2 10 2 . 3 3 7 9 3 5 4 2 20 17 AID 76 | . . . . . . 3 1 1 1 1 . 7 5 3 1 2 . . 2 . 1 5 2 5 . . 3 . . 1 8 . . 1 3 1 . . 4 2 5 8 PICKUP 4 | . . . . . . . . . . . . . . . . . . . . . . . . . . . . . . . . . . . . 4 . . . . . . COLLECT 1 | . . . . . . . . . . . . . . . . . . . . . . . . . . . . . . . . . . . . 1 . . . . . . EXPLORE 3 | . . . . . . . . . . . . . . . . . . . . . . . . . . . . . . . 1 1 . . . . . . . . 1 . RETURN 1 | . . . . . . . . . . . . . . . . . . . . . . . . . . . . . . . 1 . . . . . . . . . . . Ally Attacks 2346 | . . . . . 8 . . 144 54 24 . 188 61 93 164 22 1 . 43 . 25 59 143 96 3 14 130 50 . 148 39 32 56 23 41 25 101 88 163 33 148 127 Total Damage 78042 | . . . . . 104 . . 3017 890 423 . 3428 1580 2099 5690 809 10 . 696 . 644 2264 3879 3671 138 305 2983 1321 . 4245 802 334 2050 520 1080 1185 3614 5469 3156 4251 6259 11126 Kills 440 | . . . . . . . . 29 5 5 . 19 8 6 35 5 1 . 2 . 7 3 27 26 . 1 15 22 . 33 8 3 12 6 2 8 24 21 9 16 40 42 Allies Corrupted 8 | . . . . . . . . . . . . . 1 . . . . . . . . . . . 1 . 2 . . . . 2 . . . . . . 1 . . 1 Allies Melted 1 | . . . . . . . . . . . . . . . 1 . . . . . . . . . . . . . . . . . . . . . . . . . . . Intel | -11 -10 -10 -10 -9 -8 -7 -7 -7 -7 -7 -7 -6 -6 -6 -6 -6 -6 -6 -6 -5 -5 -5 -5 -5 -5 -5 -5 -4 -4 -4 -4 -4 -4 -3 -3 -3 -3 -2 -2 -2 -1 -1 ------- Run | Scr Mat Min Exi Min Mat Fac Was Fac Low Low Dat Pro Fac Was Fac Low Low Zio Dee Pro Fac Was Fac Ext Cet Arc Hub Fac Was Fac Upp Upp War Pro Res Tes Gar Res Qua Sec Acc Com Robot Analysis Total 20 | . . . . . 1 4 . 1 . . . . 1 . 3 . . . . . 1 . . . . . 1 . . 1 . . . . 2 . . . 1 2 1 1 Derelict Logs Recovered 17 | . . 2 . 2 . . . . 2 . . 2 . . . 2 2 1 . . . . . . . . . . . . 3 1 . . . . . . . . . . Drone Launches 6 | . . . . . . . . . . . . . . . . . . . . . . . . . . . . 2 . . 2 . . . . . . . . . 2 . Drone Recoveries . | . . . . . . . . . . . . . . . . . . . . . . . . . . . . . . . . . . . . . . . . . . . Exploration | -11 -10 -10 -10 -9 -8 -7 -7 -7 -7 -7 -7 -6 -6 -6 -6 -6 -6 -6 -6 -5 -5 -5 -5 -5 -5 -5 -5 -4 -4 -4 -4 -4 -4 -3 -3 -3 -3 -2 -2 -2 -1 -1 ------------- Run | Scr Mat Min Exi Min Mat Fac Was Fac Low Low Dat Pro Fac Was Fac Low Low Zio Dee Pro Fac Was Fac Ext Cet Arc Hub Fac Was Fac Upp Upp War Pro Res Tes Gar Res Qua Sec Acc Com Turns Passed 48476 | 34 591 521 200 441 1784 1674 514 1462 520 366 34 990 2652 713 1964 314 247 562 2278 328 3473 519 1824 2147 303 127 1270 1527 817 1575 358 395 525 344 777 894 1229 913 1036 1302 3201 5731 Spaces Moved 71066 | 31 633 738 533 609 1906 2675 686 2890 1107 847 85 1079 4315 327 3196 507 656 1022 2145 541 4792 467 2628 1782 363 99 2091 2543 329 2676 426 443 827 534 1579 1681 1105 1808 2362 2537 5725 7741 Core 825 | 31 204 . . . . . . . 19 . . 114 . . . . . . . . 113 . . 287 . . . 2 . . . . 6 . . 20 2 . . . . 27 Treads . | . . . . . . . . . . . . . . . . . . . . . . . . . . . . . . . . . . . . . . . . . . . Legs . | . . . . . . . . . . . . . . . . . . . . . . . . . . . . . . . . . . . . . . . . . . . Wheels . | . . . . . . . . . . . . . . . . . . . . . . . . . . . . . . . . . . . . . . . . . . . Hover . | . . . . . . . . . . . . . . . . . . . . . . . . . . . . . . . . . . . . . . . . . . . Flight 70241 | . 429 738 533 609 1906 2675 686 2890 1088 847 85 965 4315 327 3196 507 656 1022 2145 541 4679 467 2628 1495 363 99 2091 2541 329 2676 426 443 821 534 1579 1661 1103 1808 2362 2537 5725 7714 Fastest Speed 5 | 50 37 37 37 34 29 29 29 26 26 26 26 26 26 26 20 26 26 26 13 13 12 24 20 24 20 24 11 16 17 14 17 17 17 14 7 7 12 14 8 7 5 5 Average Speed 23 | 74 45 37 37 35 33 29 29 27 28 26 26 39 26 26 25 26 26 26 25 13 25 24 23 54 27 39 18 16 17 16 17 17 18 16 16 19 53 15 14 14 16 18 Slowest Speed 350 | 100 100 37 37 37 37 29 29 29 150 26 26 150 26 26 29 26 26 26 91 78 125 24 24 250 92 92 92 250 17 17 17 17 250 17 17 250 250 89 18 15 17 350 Overloaded Moves 2313 | . . . . . . . . . . . . . . . 240 . . . 101 . 203 . 18 . 12 . 184 . . 4 . . . 9 178 57 144 465 19 65 262 352 Propulsion Burnouts 1 | . . . . . . . . . . . . . . . 1 . . . . . . . . . . . . . . . . . . . . . . . . . . . Robots Hopped 261 | . 1 4 . . 8 5 . 14 1 1 . . 5 . 22 2 . . . . 15 . 9 5 . . 15 8 . 1 . . . . 1 15 . 11 16 6 27 69 Cave-ins Triggered . | . . . . . . . . . . . . . . . . . . . . . . . . . . . . . . . . . . . . . . . . . . . Exploration Rate (%) 72 | 3 96 94 88 82 86 53 96 72 95 82 71 84 56 95 55 63 75 86 93 57 63 93 31 97 70 72 78 32 89 38 75 88 85 61 34 86 85 24 88 91 86 89 Regions Visited 42 Branch Regions 24 Pre-discovered Areas 10 | . . 2 1 2 . . . . . . 1 . . . . . 1 3 . . . . . . . . . . . . . . . . . . . . . . . . Known Exits Taken 29 | . 1 . . . 1 . . 1 1 1 1 1 . . 1 1 1 1 1 1 . . 1 1 1 1 1 . . 1 1 1 1 1 1 1 . 1 1 1 1 . Unknown Exits Taken 4 | 1 . 1 1 1 . . . . . . . . . . . . . . . . . . . . . . . . . . . . . . . . . . . . . . Scrap Searched 25 | . . 1 . 1 . . . . 2 3 . 4 . . . 3 5 2 . . . . . . . . . . . . 3 1 . . . . . . . . . . Spaces Dug 357 | . . . . . 3 7 . 3 30 . . 7 16 . 34 . . . 6 . 4 . 9 . 3 3 8 11 . 10 . . . 13 3 6 . . 23 26 41 91 Terrain Destroyed 1625 | . . . . 36 9 69 44 3 47 3 . 24 26 2 42 10 . . 24 49 65 4 57 2 10 3 349 43 . 13 . 1 7 13 6 11 7 3 23 26 41 553 Melee 227 | . . . . . 3 7 . 3 1 . . . 16 . 34 . . . 6 . 4 . 9 . 3 3 8 11 . 10 . . . . 3 6 . . 23 26 41 10 Projectile 523 | . . . . . . . 1 . . . . . . 2 8 . . . . . . 4 5 2 3 . 12 . . 3 . . 7 . 3 5 . . . . . 468 AOE 875 | . . . . 36 6 62 43 . 46 3 . 24 10 . . 10 . . 18 49 61 . 43 . 4 . 329 32 . . . 1 . 13 . . 7 3 . . . 75 Actions | -11 -10 -10 -10 -9 -8 -7 -7 -7 -7 -7 -7 -6 -6 -6 -6 -6 -6 -6 -6 -5 -5 -5 -5 -5 -5 -5 -5 -4 -4 -4 -4 -4 -4 -3 -3 -3 -3 -2 -2 -2 -1 -1 --------- Run | Scr Mat Min Exi Min Mat Fac Was Fac Low Low Dat Pro Fac Was Fac Low Low Zio Dee Pro Fac Was Fac Ext Cet Arc Hub Fac Was Fac Upp Upp War Pro Res Tes Gar Res Qua Sec Acc Com Total 98494 | 36 839 875 535 812 2824 3374 938 3424 1281 971 96 1595 5681 887 4176 666 726 1317 3726 778 6709 808 3751 2869 516 171 2839 3564 1089 3746 704 758 1184 743 2022 2194 1688 2418 2956 3333 7721 11154 Wait 22730 | . 132 58 . 168 659 499 189 412 112 104 12 429 1157 526 859 136 65 295 1414 221 1599 294 1048 912 78 50 596 845 757 1001 270 307 312 133 353 412 351 585 512 602 1597 2669 Move 70566 | 30 630 730 532 608 1890 2665 685 2865 1104 844 84 1078 4305 326 3154 502 655 1021 2144 540 4766 466 2612 1771 362 98 2063 2528 328 2673 425 442 826 533 1576 1651 1103 1789 2332 2527 5676 7627 Hop 199 | . 1 3 . . 7 5 . 10 1 1 . . 5 . 19 2 . . . . 11 . 6 5 . . 12 7 . 1 . . . . 1 14 . 7 13 3 21 44 Pick Up 74 | . 2 3 1 2 8 3 4 . . . . 1 1 . 3 1 . . 2 . 1 . 1 . . . . 1 . . . . 1 1 . 2 . . 1 4 5 26 Fast Attach 314 | 4 6 2 1 3 29 9 3 11 . 2 . 1 10 . 8 . . . 21 . 13 . 11 2 9 . 13 19 2 5 . . 9 5 2 28 6 3 6 17 27 27 Attach 30 | . 2 1 . 1 . . . . . . . . . . . . . . 2 . . . 1 . . . . 1 . . . . . 1 . . 1 . 1 . 1 18 Detach 29 | . 2 1 . . 2 . . . . . . . . . . . . . 1 . 1 . 1 . 2 . 2 . . . . . . . . 2 1 . 1 . 1 12 Swap 402 | . . 1 . 4 11 24 7 13 9 2 . 10 30 2 12 7 1 1 18 5 34 2 10 11 11 8 27 12 . 3 2 1 2 9 13 1 9 7 7 8 22 46 Drop 333 | . 3 5 1 3 28 8 6 7 . 2 . 2 11 . 10 1 . . 23 . 10 . 12 2 8 . 12 19 2 5 . . 10 5 2 30 5 2 6 14 28 51 Fire 1512 | 2 48 54 . 12 129 95 37 42 13 11 . 29 25 33 33 12 3 . 68 9 130 32 16 35 23 3 42 10 . 10 3 3 4 14 16 6 17 4 1 . 39 449 Melee 980 | . . . . . 7 17 . 40 6 . . . 87 . 52 . . . 6 . 34 . 19 17 3 3 32 72 . 31 1 . 4 27 27 33 27 9 59 115 208 44 Ram . | . . . . . . . . . . . . . . . . . . . . . . . . . . . . . . . . . . . . . . . . . . . Kick . | . . . . . . . . . . . . . . . . . . . . . . . . . . . . . . . . . . . . . . . . . . . Crush . | . . . . . . . . . . . . . . . . . . . . . . . . . . . . . . . . . . . . . . . . . . . Escape Stasis 126 | . . . . . . . . . . . . . . . . . . . . . . . . . . . . . . . . . . . . . 108 . . . . 18 Rewire 174 | . . . . . . . . . 21 . . 9 . . . . . . . . 8 . . 87 . . 1 12 . . 2 . 11 . . 4 17 . . . 1 1 Trap . | . . . . . . . . . . . . . . . . . . . . . . . . . . . . . . . . . . . . . . . . . . . Miscellaneous 1025 | . 13 17 . 11 54 49 7 24 15 5 . 36 50 . 26 5 2 . 27 3 102 14 14 27 20 9 39 38 . 17 1 5 5 15 32 11 43 12 17 43 95 122 Route ------- -11/Scrapyard -10/Materials (discovered 5 exits: [*Mat x3] / *Min x2) -10/Mines (discovered 3 exits: [*Mat x2] / *Exi) -10/Exiles -9/Mines (discovered 2 exits: *Mat x2) -8/Materials (discovered 2 exits: *Fac x2) -7/Factory (discovered 3 exits: *Fac / Low x2) -7/Waste -7/Factory (discovered 3 exits: *Fac x2 / *Low) -7/Lower Caves -7/Lower Caves (discovered 2 exits: *Fac / *Dat) -7/Data Miner -6/Proximity Caves -6/Factory (discovered 3 exits: *Fac x2 / *Low) -6/Waste -6/Factory (discovered 4 exits: *Fac x2 / *Low x2) -6/Lower Caves -6/Lower Caves -6/Zion (discovered 2 exits: *Dee / *Pro) -6/Deep Caves -5/Proximity Caves -5/Factory (discovered 7 exits: *Fac x3 / Upp x2 / *Ext x2) -5/Waste -5/Factory (discovered 3 exits: *Fac x2 / *Ext) -5/Extension (discovered 3 exits: *Fac x2 / *Cet) -5/Cetus (discovered 2 exits: *Fac / *Arc) -5/Archives (discovered 2 exits: *Hub x2) -5/Hub_04(d) (discovered 4 exits: *Fac x4) -4/Factory (discovered 5 exits: *Res x2 / Upp x2 / Arm) -4/Waste -4/Factory (discovered 7 exits: *Res x4 / *Upp x2 / Arm) -4/Upper Caves -4/Upper Caves (discovered 2 exits: *Res / *War) -4/Warlord -3/Proximity Caves -3/Research (discovered 5 exits: *Res x3 / *Tes x2) -3/Testing (discovered 2 exits: *Res / Gar) -3/Garrison (discovered 2 exits: *Res x2) -2/Research (discovered 2 exits: *Qua x2) -2/Quarantine (discovered 2 exits: *Acc / *Sec) -2/Section 7 -1/Access (discovered 2 exits: [Sur] / *Com) -1/Command (discovered 2 exits: [*Sur x2]) 0b11 Command History --------- Turn | Location | Event 1 | -11/Scrapyard | Upgraded with Utility slot (x1) 1 | -11/Scrapyard | Upgraded with Weapon slot (x1) 9 | -11/Scrapyard | Discovered new exit (range 16) 35 | -11/Scrapyard | Entered Materials 163 | -10/Materials | Discovered new exit (range 16) 296 | -10/Materials | Discovered new exit (range 8) 303 | -10/Materials | Upgraded with Propulsion slot (x1) 326 | -10/Materials | Build established: Mutant 327 | -10/Materials | Discovered new exit (range 8) 386 | -10/Materials | Identified exit to Mines 397 | -10/Materials | Discovered new exit (range 9) 558 | -10/Materials | Discovered new exit (range 15) 626 | -10/Materials | Entered Mines 626 | -10/Mines | Accompanied by 1 ally 628 | -10/Mines | Reached level 2 634 | -10/Mines | Learned location of Zion (-6) 701 | -10/Mines | Learned location of Mines (-9) 832 | -10/Mines | Assisted by bots powering up and referring to "LRC-V3" 875 | -10/Mines | Reached level 3 910 | -10/Mines | Discovered new exit (range 8) 1013 | -10/Mines | Found a hidden stash of uninstalled traps 1019 | -10/Mines | Deemed a non-threat by the Exiles lab entrance 1065 | -10/Mines | Discovered new exit (range 15) 1073 | -10/Mines | Received a Mining Laser from a helpful Derelict 1146 | -10/Mines | Discovered new exit (range 5) 1147 | -10/Mines | Entered Exiles 1156 | -10/Exiles | Met 8R-AWN 1163 | -10/Exiles | Met EX-HEX 1173 | -10/Exiles | Met EX-BIN 1188 | -10/Exiles | Met EX-DEC 1204 | -10/Exiles | Visited The Gauntlet 1266 | -10/Exiles | Discovered new exit (range 10) 1298 | -10/Exiles | Aligned with FarCom system 1298 | -10/Exiles | Given EX-Vault access code 1307 | -10/Exiles | Opened EX-Vault 1310 | -10/Exiles | Found Trap Reconfigurator 1312 | -10/Exiles | Found Superbattery 1321 | -10/Exiles | Warned to stay clear of 0b10 Research branches 1347 | -10/Exiles | Stole two prototypes: Trap Reconfigurator, Superbattery 1347 | -10/Exiles | Entered Mines 1349 | -9/Mines | Reached level 4 1349 | -9/Mines | Upgraded with Propulsion slot (x1) 1349 | -9/Mines | Upgraded with Utility slot (x1) 1353 | -9/Mines | Assembled infested the area 1454 | -9/Mines | Discovered new exit (range 7) 1523 | -9/Mines | Learned location of Storage (-9) 1527 | -9/Mines | Received a Rocket Launcher from a helpful Derelict 1568 | -9/Mines | Core integrity fell below 50% 1618 | -9/Mines | Escorted by a lone wolf Derelict 1737 | -9/Mines | Discovered new exit (range 3) 1755 | -9/Mines | Joined a pair of Derelicts in attacking an 0b10 outpost 1788 | -9/Mines | Entered Materials 1788 | -8/Materials | Accompanied by 1 ally 1790 | -8/Materials | Reached level 5 1902 | -8/Materials | Build established: Scavenger-Scout 1978 | -8/Materials | Discovered new exit (range 16) 2194 | -8/Materials | Core integrity fell below 50% 2203 | -8/Materials | Reached level 6 2286 | -8/Materials | Upgraded with Utility slot (x1) 2751 | -8/Materials | Discovered new exit (range 6) 2861 | -8/Materials | Build established: Hacker-Scout 2933 | -8/Materials | Repaired Imp. Light Armor Plating 2985 | -8/Materials | Repaired Imp. Assault Rifle 3014 | -8/Materials | Repaired Flight Unit 3066 | -8/Materials | Reached level 7 3260 | -8/Materials | Identified exit to Factory 3456 | -8/Materials | Reached level 8 3479 | -8/Materials | Repaired Imp. Light Armor Plating 3572 | -8/Materials | Entered Factory 3572 | -7/Factory | Accompanied by 1 ally 3574 | -7/Factory | FarCom data flow suspended 3574 | -7/Factory | Reached level 9 3750 | -7/Factory | Garrison activated, responded to threat 3885 | -7/Factory | Build established: Hacker-Sprinter 3926 | -7/Factory | Garrison activated, responded to threat 4023 | -7/Factory | Reached level 10 4208 | -7/Factory | Fabricated M-28 Smith? 4366 | -7/Factory | Fabricated M-28 Smith? 4462 | -7/Factory | Reached level 11 4489 | -7/Factory | Destroyed 7 combat bots 4522 | -7/Factory | Upgraded with Utility slot (x1) 4564 | -7/Factory | Repaired Imp. Light Armor Plating 4596 | -7/Factory | Repaired Hvy. EM Shotgun 4755 | -7/Factory | Discovered new exit (range 15) 4796 | -7/Factory | Identified exit to Factory 4947 | -7/Factory | Reached level 12 5031 | -7/Factory | Identified exit to Lower Caves 5212 | -7/Factory | Fabricated M-28 Smith? 5246 | -7/Factory | Manually triggered Chute Trap 5246 | -7/Factory | Sucked down chute 5246 | -7/Factory | Entered Waste 5248 | -7/Waste | Spotted C-40 Crusher 5248 | -7/Waste | Spotted C-40 Crusher 5258 | -7/Waste | Destroyed C-40 Crusher 5274 | -7/Waste | Spotted C-40 Crusher 5276 | -7/Waste | Destroyed C-40 Crusher 5305 | -7/Waste | Destroyed C-40 Crusher 5309 | -7/Waste | Spotted C-40 Crusher 5329 | -7/Waste | Destroyed C-40 Crusher 5360 | -7/Waste | Spotted C-40 Crusher 5373 | -7/Waste | Destroyed C-40 Crusher 5383 | -7/Waste | Spotted C-40 Crusher 5418 | -7/Waste | Destroyed C-40 Crusher 5449 | -7/Waste | Warlord forces began an assault 5467 | -7/Waste | Discovered new exit (range 17) 5505 | -7/Waste | 8 allies followed down the chute 5611 | -7/Waste | Identified exit to Factory 5760 | -7/Waste | Entered Factory 5760 | -7/Factory | Accompanied by 27 allies 5796 | -7/Factory | Build established: Commander-Sprinter 5870 | -7/Factory | Reached level 13 6027 | -7/Factory | Reached level 14 6027 | -7/Factory | Upgraded with Propulsion slot (x1) 6040 | -7/Factory | Discovered exit to Lower Caves (range 6) 6159 | -7/Factory | Repaired Enh. Autogun 6200 | -7/Factory | Reached level 15 6214 | -7/Factory | Discovered exit to Factory (range 16) 6337 | -7/Factory | Build established: Commander-Scout 6352 | -7/Factory | Upgraded with Utility slot (x1) 6421 | -7/Factory | P-60 Hacker assimilated allied G0-JUX(m) 6424 | -7/Factory | Garrison activated, responded to threat 6431 | -7/Factory | Reached level 16 6711 | -7/Factory | Build established: Hacker-Scout 6931 | -7/Factory | Discovered exit to Factory (range 14) 7222 | -7/Factory | Entered Lower Caves 7222 | -7/Lower Caves | Accompanied by 14 allies 7270 | -7/Lower Caves | Attacked by a delusional Derelict stockpiling Unaware 7341 | -7/Lower Caves | Learned location of 1 exit from Factory 7365 | -7/Lower Caves | Attracted the attention of an 0b10 outpost 7447 | -7/Lower Caves | Learned 8 Research zone layouts 7447 | -7/Lower Caves | Learned Extension trap positions 7447 | -7/Lower Caves | Learned Armory stockpile data 7447 | -7/Lower Caves | Learned Armory security intel 7447 | -7/Lower Caves | Learned Research garrison access intel 7586 | -7/Lower Caves | Discovered new exit (range 9) 7589 | -7/Lower Caves | Identified exit to Lower Caves 7593 | -7/Lower Caves | Learned Factory stockpile data 7634 | -7/Lower Caves | Reached level 17 7694 | -7/Lower Caves | Spotted VK-H94(f) 7700 | -7/Lower Caves | Encountered a Master Thief 7700 | -7/Lower Caves | Spotted NN-3TH(f) 7701 | -7/Lower Caves | Encountered a Master Thief 7710 | -7/Lower Caves | Build established: Commander-Scout 7710 | -7/Lower Caves | Allies destroyed NN-3TH(f) 7742 | -7/Lower Caves | Entered another Lower Caves area 7742 | -7/Lower Caves | Accompanied by 19 allies 7744 | -7/Lower Caves | Discovered exit to Factory (range 12) 7960 | -7/Lower Caves | Learned Armory emergency access door positions 7960 | -7/Lower Caves | Learned Research stockpile data 7960 | -7/Lower Caves | Learned Factory terminal intel 7992 | -7/Lower Caves | Discovered new exit (range 10) 7995 | -7/Lower Caves | Identified exit to Data Miner 8108 | -7/Lower Caves | Entered Data Miner 8108 | -7/Data Miner | Accompanied by 18 allies 8108 | -7/Data Miner | Discovered new exit (range 6) 8114 | -7/Data Miner | Met Data Miner 8119 | -7/Data Miner | Learned location of Section 7 (-2) 8119 | -7/Data Miner | Acquired the access code to Warlord's prototype stash 8124 | -7/Data Miner | Received God Mode back door access code from Data Miner 8133 | -7/Data Miner | Identified exit to Proximity Caves 8142 | -7/Data Miner | Entered Proximity Caves 8142 | -6/Proximity Caves | Accompanied by 18 allies 8144 | -6/Proximity Caves | Reached level 18 8158 | -6/Proximity Caves | Escorted by Enhanced Grunt 8177 | -6/Proximity Caves | Spotted GP-Y4X(f) 8177 | -6/Proximity Caves | Spotted E3-1S8(f) 8178 | -6/Proximity Caves | Encountered a Master Thief 8178 | -6/Proximity Caves | Encountered a Master Thief 8196 | -6/Proximity Caves | Allies destroyed GP-Y4X(f) 8198 | -6/Proximity Caves | Allies destroyed E3-1S8(f) 8288 | -6/Proximity Caves | Attracted the attention of an 0b10 outpost 8379 | -6/Proximity Caves | Reached level 19 8556 | -6/Proximity Caves | Spotted CU-9OI(f) 8557 | -6/Proximity Caves | Encountered a Master Thief 8560 | -6/Proximity Caves | Allies destroyed CU-9OI(f) 8642 | -6/Proximity Caves | Learned Factory interactive machine intel 8804 | -6/Proximity Caves | Spotted B-75 Beast 8821 | -6/Proximity Caves | Allies destroyed B-75 Beast 8841 | -6/Proximity Caves | Discovered exit to Factory (range 14) 8989 | -6/Proximity Caves | Attracted the attention of an 0b10 checkpoint 9035 | -6/Proximity Caves | Learned 4 Factory zone layouts 9132 | -6/Proximity Caves | Entered Factory 9132 | -6/Factory | Accompanied by 19 allies 9133 | -6/Factory | Identified exit to Lower Caves 9134 | -6/Factory | Reached level 20 9136 | -6/Factory | Loaded intel: 45 interactive machine locations 9137 | -6/Factory | Loaded intel: 19 terminal locations 9482 | -6/Factory | Build established: Wizard-Scout 9864 | -6/Factory | Fabricated P-70 Sage (x2) 9921 | -6/Factory | Fabricated Imp. Powered Armor? 10161 | -6/Factory | Build established: Commander-Scout 10379 | -6/Factory | Found Prototype Processor 10379 | -6/Factory | Identified Exp. Signal Interpreter 10468 | -6/Factory | Fabricated I-47 Archangel? 10619 | -6/Factory | Local fabrication network quarantined 10884 | -6/Factory | Reached level 21 10917 | -6/Factory | Discovered new exit (range 4) 10918 | -6/Factory | Identified exit to Factory 11732 | -6/Factory | Discovered exit to Factory (range 17) 11784 | -6/Factory | Manually triggered Chute Trap 11784 | -6/Factory | Sucked down chute 11784 | -6/Factory | Entered Waste 11784 | -6/Waste | Met up with 1 ally sucked down the chute earlier 11790 | -6/Waste | Spotted C-40 Crusher 11815 | -6/Waste | Allies destroyed C-40 Crusher 11863 | -6/Waste | Destroyed C-40 Crusher 11902 | -6/Waste | Spotted C-40 Crusher 11912 | -6/Waste | Allies destroyed C-40 Crusher 11917 | -6/Waste | Spotted C-40 Crusher 12055 | -6/Waste | 1 allies followed down the chute 12055 | -6/Waste | Allies destroyed C-40 Crusher 12069 | -6/Waste | Allies destroyed C-40 Crusher 12093 | -6/Waste | Build established: Wizard-Scout 12170 | -6/Waste | 24 allies followed down the chute 12276 | -6/Waste | Allies destroyed C-40 Crusher 12400 | -6/Waste | Warlord forces began an assault 12418 | -6/Waste | Discovered new exit (range 12) 12424 | -6/Waste | Identified exit to Factory 12454 | -6/Waste | Build established: Commander-Scout 12497 | -6/Waste | Entered Factory 12497 | -6/Factory | Accompanied by 37 allies 12746 | -6/Factory | Discovered exit to Lower Caves (range 9) 12964 | -6/Factory | Spotted B-75 Beast 12977 | -6/Factory | Allies destroyed B-75 Beast 13323 | -6/Factory | Discovered exit to Factory (range 14) 13387 | -6/Factory | Fabricated I-47 Archangel? 13400 | -6/Factory | Local fabrication network quarantined 13668 | -6/Factory | Discovered exit to Factory (range 13) 14211 | -6/Factory | Reached level 22 14461 | -6/Factory | Entered Lower Caves 14461 | -6/Lower Caves | Accompanied by 21 allies 14472 | -6/Lower Caves | Learned Factory terminal intel 14557 | -6/Lower Caves | Encountered a Warlord checkpoint 14611 | -6/Lower Caves | Spotted KP-CXT(f) 14612 | -6/Lower Caves | Encountered a Master Thief 14627 | -6/Lower Caves | Allies destroyed KP-CXT(f) 14715 | -6/Lower Caves | Destroyed 7 combat bots 14721 | -6/Lower Caves | Discovered new exit (range 9) 14723 | -6/Lower Caves | Identified exit to Lower Caves 14775 | -6/Lower Caves | Entered another Lower Caves area 14775 | -6/Lower Caves | Accompanied by 18 allies 14975 | -6/Lower Caves | Discovered new exit (range 10) 14976 | -6/Lower Caves | Learned location of Extension (-5) 14979 | -6/Lower Caves | Identified exit to Zion 15022 | -6/Lower Caves | Entered Zion 15022 | -6/Zion | Accompanied by 18 allies 15034 | -6/Zion | Learned 8 Factory zone layouts 15042 | -6/Zion | Discovered new exit (range 14) 15045 | -6/Zion | Identified exit to Proximity Caves 15077 | -6/Zion | Learned location of Quarantine (-2) 15087 | -6/Zion | Visited the Megawrench Repair Shop 15131 | -6/Zion | Gained Derelict followers 15181 | -6/Zion | Learned location of Warlord (-4) 15194 | -6/Zion | Acquired unknown access codes intercepted by a Zionite 15287 | -6/Zion | Opened final containment barrier to the Deep Caves 15311 | -6/Zion | Discovered new exit (range 3) 15311 | -6/Zion | Saw the warning signs outside the Deep Caves entrance 15567 | -6/Zion | Identified exit to Deep Caves 15584 | -6/Zion | Entered Deep Caves 15584 | -6/Deep Caves | Accompanied by 12 allies 15838 | -6/Deep Caves | Found Prototype Device 15838 | -6/Deep Caves | Identified Zio. Metafield Generator 15846 | -6/Deep Caves | Found Prototype Protection 15846 | -6/Deep Caves | Identified Zio. Weapon Casing 15873 | -6/Deep Caves | Upgraded with Power slot (x1) 15968 | -6/Deep Caves | Z-Facility disabled 16058 | -6/Deep Caves | Found Zio. Weapon Casing 16157 | -6/Deep Caves | Spotted as-67265 16163 | -6/Deep Caves | Spotted as-64375 16177 | -6/Deep Caves | Destroyed as-64375 16191 | -6/Deep Caves | Triggered Deep Caves wall 16197 | -6/Deep Caves | Spotted AS-18964 16253 | -6/Deep Caves | Build established: Wizard-Scout 16254 | -6/Deep Caves | Spotted AS-69270 16266 | -6/Deep Caves | Destroyed 35 combat bots 16284 | -6/Deep Caves | Destroyed AS-69270 16307 | -6/Deep Caves | Destroyed AS-18964 16351 | -6/Deep Caves | Triggered Deep Caves wall 16631 | -6/Deep Caves | Discovered new exit (range 13) 17819 | -6/Deep Caves | Identified exit to Proximity Caves 17862 | -6/Deep Caves | Entered Proximity Caves 17862 | -5/Proximity Caves | Accompanied by 11 allies 17998 | -5/Proximity Caves | Reached level 23 18009 | -5/Proximity Caves | Received a Behemoth hack from an annoying Tinkerer 18070 | -5/Proximity Caves | Spotted B-75 Beast 18135 | -5/Proximity Caves | Discovered exit to Factory (range 9) 18190 | -5/Proximity Caves | Entered Factory 18190 | -5/Factory | Accompanied by 11 allies 18191 | -5/Factory | Identified exit to Upper Caves 18192 | -5/Factory | Identified exit to Factory 18192 | -5/Factory | Identified exit to Extension 18193 | -5/Factory | Loaded intel: 21 terminal locations 18496 | -5/Factory | Destroyed 7 combat bots 18496 | -5/Factory | Upgraded with Propulsion slot (x1) 18626 | -5/Factory | Spotted B-75 Beast 18990 | -5/Factory | Discovered exit to Factory (range 16) 19751 | -5/Factory | Reached level 24 20279 | -5/Factory | Repaired Imp. Maneuvering Thrusters 20300 | -5/Factory | Fabricated M-36 Artificer? 20308 | -5/Factory | Repaired Imp. Powered Armor 20705 | -5/Factory | Destroyed B-75 Beast 20887 | -5/Factory | Garrison activated, responded to threat 21020 | -5/Factory | Discovered exit to Factory (range 14) 21190 | -5/Factory | First assault squad dispatched 21258 | -5/Factory | Build established: Commander-Scout 21275 | -5/Factory | Found Prototype Launcher 21275 | -5/Factory | Identified Tesla Bomb Launcher 21343 | -5/Factory | Repaired Cld. VTOL Module 21367 | -5/Factory | Repaired Prc. Shock Rifle 21442 | -5/Factory | Fabricated Cld. Proton Cannon (x1) 21585 | -5/Factory | Local fabrication network quarantined 21663 | -5/Factory | Manually triggered Chute Trap 21663 | -5/Factory | Sucked down chute 21663 | -5/Factory | Entered Waste 21689 | -5/Waste | Spotted C-40 Crusher 21721 | -5/Waste | Allies destroyed C-40 Crusher 21723 | -5/Waste | Spotted C-40 Crusher 21742 | -5/Waste | Sage 6a assimilated hostile C-40 Crusher 21756 | -5/Waste | Spotted C-40 Crusher 21770 | -5/Waste | Allies destroyed C-40 Crusher 21771 | -5/Waste | Spotted C-40 Crusher 21786 | -5/Waste | Sage 6a assimilated hostile C-40 Crusher 21837 | -5/Waste | Spotted C-40 Crusher 21848 | -5/Waste | Spotted C-40 Crusher 21852 | -5/Waste | Allies destroyed C-40 Crusher 21866 | -5/Waste | Destroyed C-40 Crusher 21915 | -5/Waste | Discovered new exit (range 12) 21925 | -5/Waste | 37 allies followed down the chute 22095 | -5/Waste | Warlord forces began an assault 22125 | -5/Waste | Identified exit to Factory 22182 | -5/Waste | Entered Factory 22182 | -5/Factory | Accompanied by 33 allies 22323 | -5/Factory | Discovered exit to Extension (range 4) 22378 | -5/Factory | Discovered exit to Factory (range 12) 22443 | -5/Factory | Fabricated Imp. System Backup Module? 23214 | -5/Factory | Fabricated Enh. Coil Gun (x1) 23247 | -5/Factory | Garrison activated, responded to threat 23293 | -5/Factory | Discovered exit to Factory (range 14) 23502 | -5/Factory | Reached level 25 23504 | -5/Factory | Upgraded with Propulsion slot (x1) 23909 | -5/Factory | Fabricated Cld. Proton Cannon (x1) 24006 | -5/Factory | Entered Extension 24006 | -5/Extension | Accompanied by 22 allies 24007 | -5/Extension | Loaded intel: 24 trap records 24123 | -5/Extension | Spotted B-75 Beast 24140 | -5/Extension | Destroyed B-75 Beast 24411 | -5/Extension | Rescued a captive Derelict 24412 | -5/Extension | Rescued a captive Derelict 24515 | -5/Extension | Build established: Commander-Assassin 24839 | -5/Extension | Spotted B-75 Beast 24863 | -5/Extension | Destroyed B-75 Beast 24865 | -5/Extension | Discovered exit to Factory (range 12) 24958 | -5/Extension | Rescued a captive Derelict 24958 | -5/Extension | Rescued a captive Derelict 25370 | -5/Extension | Rescued A7 25496 | -5/Extension | Rescued a captive Derelict 25498 | -5/Extension | Rescued a captive Derelict 25717 | -5/Extension | Discovered exit to Factory (range 10) 25717 | -5/Extension | Discovered new exit (range 6) 25982 | -5/Extension | Build established: Commander-Scout 26043 | -5/Extension | Identified exit to Cetus 26153 | -5/Extension | Entered Cetus 26153 | -5/Cetus | Accompanied by 15 allies 26158 | -5/Cetus | Acquired a Cetus Manufacturing Module code from A7 26182 | -5/Cetus | Destroyed A7 26185 | -5/Cetus | Extracted ID and sensor layout for unrecognized location from A7's data core 26201 | -5/Cetus | Spotted Cetus Guard 26201 | -5/Cetus | Spotted Cetus Guard 26201 | -5/Cetus | Spotted Cetus Guard 26201 | -5/Cetus | Spotted Cetus Guard 26207 | -5/Cetus | Destroyed Cetus Guard 26209 | -5/Cetus | Destroyed Cetus Guard 26210 | -5/Cetus | Destroyed Cetus Guard 26211 | -5/Cetus | Destroyed Cetus Guard 26223 | -5/Cetus | Upgraded with Weapon slot (x1) 26248 | -5/Cetus | Started Cetus Manufacturing Module 26273 | -5/Cetus | Manufactured an Enhanced Grunt 26286 | -5/Cetus | Discovered new exit (range 18) 26298 | -5/Cetus | Manufactured an Enhanced Grunt 26323 | -5/Cetus | Manufactured an Enhanced Grunt 26327 | -5/Cetus | Spotted Cetus Guard 26327 | -5/Cetus | Spotted Cetus Guard 26330 | -5/Cetus | Spotted Cetus Guard 26333 | -5/Cetus | Destroyed Cetus Guard 26335 | -5/Cetus | Destroyed Cetus Guard 26335 | -5/Cetus | Destroyed Cetus Guard 26335 | -5/Cetus | Spotted Cetus Guard 26337 | -5/Cetus | Destroyed Cetus Guard 26344 | -5/Cetus | Discovered exit to Factory (range 17) 26347 | -5/Cetus | Met Revision 17 26348 | -5/Cetus | Manufactured an Enhanced Grunt 26373 | -5/Cetus | Manufactured an Enhanced Grunt 26398 | -5/Cetus | Identified exit to Archives 26456 | -5/Cetus | Entered Archives 26456 | -5/Archives | Accompanied by 19 allies 26497 | -5/Archives | Discovered new exit (range 18) 26523 | -5/Archives | Discovered new exit (range 18) 26539 | -5/Archives | Identified exit to Hub_04(d) 26583 | -5/Archives | Entered Hub_04(d) 26583 | -5/Hub_04(d) | Accompanied by 18 allies 26585 | -5/Hub_04(d) | Reached level 26 26661 | -5/Hub_04(d) | Discovered exit to Factory (range 11) 26951 | -5/Hub_04(d) | Discovered exit to Factory (range 11) 27107 | -5/Hub_04(d) | Discovered exit to Factory (range 13) 27139 | -5/Hub_04(d) | Discovered exit to Factory (range 12) 27230 | -5/Hub_04(d) | Garrison activated, responded to threat 27315 | -5/Hub_04(d) | Network Hub disabled 27447 | -5/Hub_04(d) | Garrison activated, responded to threat 27480 | -5/Hub_04(d) | Spotted Lightning 27480 | -5/Hub_04(d) | Spotted Lightning 27480 | -5/Hub_04(d) | Spotted Lightning 27486 | -5/Hub_04(d) | Destroyed Lightning 27493 | -5/Hub_04(d) | Destroyed Lightning 27497 | -5/Hub_04(d) | Garrison activated, responded to threat 27503 | -5/Hub_04(d) | P-70 Sage assimilated hostile Lightning 27505 | -5/Hub_04(d) | Found Prototype Device 27505 | -5/Hub_04(d) | Identified EM Dispersion Field 27507 | -5/Hub_04(d) | Found Prototype Device 27507 | -5/Hub_04(d) | Identified Exp. Phase Shifter 27682 | -5/Hub_04(d) | Network Hub disabled 27783 | -5/Hub_04(d) | First assault squad dispatched 27844 | -5/Hub_04(d) | Garrison activated, responded to threat 27853 | -5/Hub_04(d) | Entered Factory 27853 | -4/Factory | Accompanied by 14 allies 27854 | -4/Factory | Identified exit to Research 28033 | -4/Factory | Identified exit to Upper Caves 28033 | -4/Factory | Identified exit to Armory 28555 | -4/Factory | Reached level 27 28714 | -4/Factory | P-80 Master assimilated hostile Y-64 Sentinel 28761 | -4/Factory | Discovered exit to Research (range 13) 28818 | -4/Factory | Found Prototype Launcher 28818 | -4/Factory | Identified Scatter Rocket Array 28844 | -4/Factory | Found Prototype Device 28844 | -4/Factory | Identified EM Disruption Field 29078 | -4/Factory | Upgraded with Utility slot (x1) 29123 | -4/Factory | P-80 Master assimilated hostile S-27 Virus 29172 | -4/Factory | Fabricated Q-thruster (x2) 29182 | -4/Factory | Fabricated Nanosword (x1) 29248 | -4/Factory | Local fabrication network quarantined 29250 | -4/Factory | Fabricated Exp. Terrain Scanner (x1) 29380 | -4/Factory | Manually triggered Chute Trap 29380 | -4/Factory | Sucked down chute 29380 | -4/Factory | Entered Waste 29381 | -4/Waste | Joined by Warlord forces that had cleared the area 29673 | -4/Waste | Build established: Wizard-Scout 29790 | -4/Waste | 2 allies followed down the chute 29955 | -4/Waste | 53 allies followed down the chute 30075 | -4/Waste | Discovered new exit (range 17) 30082 | -4/Waste | Identified exit to Factory 30129 | -4/Waste | Build established: Commander-Scout 30197 | -4/Waste | Entered Factory 30197 | -4/Factory | Accompanied by 26 allies 30306 | -4/Factory | Garrison activated, responded to threat 30642 | -4/Factory | Build established: Wizard-Scout 30760 | -4/Factory | Reached level 28 31111 | -4/Factory | Fabricated Exp. Hacking Suite? 31133 | -4/Factory | Garrison activated, responded to threat 31221 | -4/Factory | Fabricated P-80 Master (x2) 31267 | -4/Factory | Fabricated M-36 Artificer? 31307 | -4/Factory | Local fabrication network quarantined 31540 | -4/Factory | Garrison activated, responded to threat 31772 | -4/Factory | Entered Upper Caves 31772 | -4/Upper Caves | Accompanied by 19 allies 31773 | -4/Upper Caves | Sage 7a assimilated hostile S-27 Virus 31922 | -4/Upper Caves | Learned Research trap positions 31954 | -4/Upper Caves | Encountered a Warlord checkpoint 31968 | -4/Upper Caves | Learned 4 Research zone layouts 31971 | -4/Upper Caves | Learned Research non-interactive machine intel 32023 | -4/Upper Caves | Discovered new exit (range 22) 32049 | -4/Upper Caves | Identified exit to Upper Caves 32130 | -4/Upper Caves | Entered another Upper Caves area 32130 | -4/Upper Caves | Accompanied by 23 allies 32135 | -4/Upper Caves | Discovered exit to Research (range 6) 32301 | -4/Upper Caves | Discovered new exit (range 13) 32312 | -4/Upper Caves | Identified exit to Warlord 32525 | -4/Upper Caves | Entered Warlord 32525 | -4/Warlord | Accompanied by 16 allies 32622 | -4/Warlord | Met Warlord 32624 | -4/Warlord | Opened Warlord's prototype stash 32628 | -4/Warlord | Found Prototype Device 32628 | -4/Warlord | Identified Exp. Focal Shield 32647 | -4/Warlord | Warlord's base attacked by MAIN.C 32649 | -4/Warlord | Found Prototype Energy Gun 32649 | -4/Warlord | Identified Vortex Rail 32651 | -4/Warlord | Found Vortex Rail 32654 | -4/Warlord | Found Prototype Energy Gun 32654 | -4/Warlord | Identified Vortex Shotgun 32691 | -4/Warlord | Learned 4 Armory zone layouts 32691 | -4/Warlord | Learned 4 Access zone layouts 32691 | -4/Warlord | Learned 4 Access zone layouts 32691 | -4/Warlord | Learned 4 Testing zone layouts 32691 | -4/Warlord | Learned 4 Quarantine zone layouts 32691 | -4/Warlord | Learned 4 Command zone layouts 32691 | -4/Warlord | Learned Quarantine security intel 32691 | -4/Warlord | Learned Armory garrison access intel 32811 | -4/Warlord | Discovered new exit (range 20) 32867 | -4/Warlord | Opened side exit 32933 | -4/Warlord | Sage 7a assimilated hostile I-47 Archangel 32947 | -4/Warlord | Identified exit to Proximity Caves 32971 | -4/Warlord | Spotted Executioner 32983 | -4/Warlord | Destroyed Executioner 32990 | -4/Warlord | Reached level 29 32997 | -4/Warlord | Warlord forces counterattacked 33050 | -4/Warlord | Entered Proximity Caves 33050 | -3/Proximity Caves | Accompanied by 9 allies 33107 | -3/Proximity Caves | Upgraded with Utility slot (x1) 33110 | -3/Proximity Caves | Found Alien Artifact 33171 | -3/Proximity Caves | Acquired the password to a Derelict Tinkerer's latest research 33172 | -3/Proximity Caves | Found Prototype Special Weapon 33172 | -3/Proximity Caves | Identified Molecular Deconstructor 33190 | -3/Proximity Caves | Caught by Unaware searching for contraband prototypes 33190 | -3/Proximity Caves | Caught by Unaware searching for contraband prototypes 33200 | -3/Proximity Caves | Master 7b assimilated hostile X-72 Disruptor 33323 | -3/Proximity Caves | Discovered exit to Research (range 30) 33327 | -3/Proximity Caves | P-80 Master assimilated allied Archangel 7b 33335 | -3/Proximity Caves | Master 7b assimilated hostile Archangel 7b 33394 | -3/Proximity Caves | Entered Research 33394 | -3/Research | Accompanied by 8 allies 33395 | -3/Research | Identified exit to Research 33396 | -3/Research | Loaded intel: 73 trap records 33396 | -3/Research | Reached level 30 33398 | -3/Research | Loaded intel: 82 non-interactive machine locations 33399 | -3/Research | Loaded intel: 3 garrison access locations 33416 | -3/Research | Spotted B-86 Titan 33445 | -3/Research | Destroyed B-86 Titan 33594 | -3/Research | Revision forces began assault on 0b10 33605 | -3/Research | Met up with Revision 17++ 33673 | -3/Research | Identified exit to Testing 33749 | -3/Research | Discovered exit to Research (range 28) 33878 | -3/Research | Fabricated M-36 Artificer (x1) 33927 | -3/Research | Fabricated C-55 Analyst (x1) 33950 | -3/Research | Identified Dimensional Node Initializer 34094 | -3/Research | Research terminal network offline 34171 | -3/Research | Entered Testing 34171 | -3/Testing | Accompanied by 10 allies 34192 | -3/Testing | Found Exp. System Shield 34262 | -3/Testing | Spotted PD-4EN9BLY8G0 34320 | -3/Testing | Found Prototype Energy Cannon 34320 | -3/Testing | Identified Null Cannon 34350 | -3/Testing | Found Prototype Launcher 34350 | -3/Testing | Identified Z-bomb Delivery System 34421 | -3/Testing | Found Prototype Device 34421 | -3/Testing | Identified Exp. Hardlight Generator 34456 | -3/Testing | Found Prototype Energy Gun 34456 | -3/Testing | Identified Warp Gun 34474 | -3/Testing | Found Prototype Hackware 34474 | -3/Testing | Identified System Mapper 34565 | -3/Testing | Found Prototype Energy Cannon 34565 | -3/Testing | Identified Disintegrator 34652 | -3/Testing | Spotted Striker 34652 | -3/Testing | Spotted Striker 34658 | -3/Testing | Found Prototype Energy Cannon 34658 | -3/Testing | Identified Cld. Nova Cannon 34669 | -3/Testing | Fabricated M-36 Artificer? 34808 | -3/Testing | Fabricated A-15 Conveyor (x1) 34853 | -3/Testing | Local fabrication network quarantined 34910 | -3/Testing | Fabricated P-80 Master? 34952 | -3/Testing | Reached level 31 34952 | -3/Testing | First assault squad dispatched 34979 | -3/Testing | Upgraded with Utility slot (x1) 34999 | -3/Testing | Identified exit to Garrison 35001 | -3/Testing | Garrison activated, responded to threat 35065 | -3/Testing | Entered Garrison 35065 | -3/Garrison | Accompanied by 16 allies 35075 | -3/Garrison | Garrison Relay disabled 35111 | -3/Garrison | Spotted B-86 Titan 35122 | -3/Garrison | Destroyed B-86 Titan 35138 | -3/Garrison | Triggered checkpoint 35147 | -3/Garrison | Triggered checkpoint 35175 | -3/Garrison | Discovered exit to Research (range 16) 35179 | -3/Garrison | Destroyed 8 combat bots 35235 | -3/Garrison | Installed Relay Interface Framework 35268 | -3/Garrison | Garrison Relay disabled 35273 | -3/Garrison | Triggered checkpoint 35328 | -3/Garrison | Triggered checkpoint 35372 | -3/Garrison | Triggered checkpoint 35546 | -3/Garrison | Triggered checkpoint 35614 | -3/Garrison | Triggered checkpoint 35644 | -3/Garrison | Garrison Relay disabled 35680 | -3/Garrison | Discovered exit to Research (range 29) 35702 | -3/Garrison | Build established: Wizard-Assassin 35754 | -3/Garrison | Triggered checkpoint 35806 | -3/Garrison | Garrison Relay disabled 36294 | -3/Garrison | Entered Research 36294 | -2/Research | Accompanied by 13 allies 36294 | -2/Research | Warlord forces began assault on 0b10 36295 | -2/Research | Identified exit to Quarantine 36296 | -2/Research | Reached level 32 36369 | -2/Research | Central database locked down 36378 | -2/Research | Discovered exit to Quarantine (range 18) 36382 | -2/Research | Met up with Warlord 36404 | -2/Research | Research machine network offline 36504 | -2/Research | Fabricated Cld. Q-thruster (x1) 36526 | -2/Research | Build established: Wizard-Scout 36577 | -2/Research | Upgraded with Weapon slot (x1) 36711 | -2/Research | Borebot progress halted 36778 | -2/Research | Borebot progress halted 36949 | -2/Research | Borebot progress halted 36976 | -2/Research | Took control of God Mode 36976 | -2/Research | Reached level 33 36976 | -2/Research | Attacked by Warlord forces 36977 | -2/Research | Spotted F4-RWH(K) 36977 | -2/Research | Spotted X1-N2O(K) 36977 | -2/Research | Attacked by Warlord 36978 | -2/Research | Spotted ZS-J4X(H) 36986 | -2/Research | Allies destroyed X1-N2O(K) 36993 | -2/Research | Destroyed ZS-J4X(H) 36998 | -2/Research | Allies destroyed F4-RWH(K) 37005 | -2/Research | Allies destroyed Warlord 37007 | -2/Research | Warlord destroyed during the assault 37069 | -2/Research | Spotted GQ-PRJ(H) 37207 | -2/Research | Entered Quarantine 37207 | -2/Quarantine | Accompanied by 12 allies 37208 | -2/Quarantine | Identified exit to Access 37465 | -2/Quarantine | Found Sigix Broadsword 37669 | -2/Quarantine | Cryocooling Duct disabled 37684 | -2/Quarantine | Ambient heat levels rising (+20) 37684 | -2/Quarantine | Non-combat units ordered to evacuate 37880 | -2/Quarantine | Spotted Fortress 38004 | -2/Quarantine | Allies destroyed Fortress 38077 | -2/Quarantine | Discovered new exit (range 6) 38078 | -2/Quarantine | Identified exit to Section 7 38243 | -2/Quarantine | Entered Section 7 38243 | -2/Section 7 | Accompanied by 10 allies 38245 | -2/Section 7 | Reached level 34 38312 | -2/Section 7 | Found Integrated Dissipator 38312 | -2/Section 7 | Installed Integrated Dissipator, increased core heat dissipation (+2%) 38421 | -2/Section 7 | Spotted S7 Guard 38425 | -2/Section 7 | Found Integrated Singularity Reactor 38425 | -2/Section 7 | Installed Integrated Singularity Reactor, increased core energy generation (+2%) 38607 | -2/Section 7 | Spotted S7 Guard 38615 | -2/Section 7 | Spotted Alpha 7 38617 | -2/Section 7 | Spotted Alpha 7 38642 | -2/Section 7 | Destroyed Alpha 7 38651 | -2/Section 7 | Destroyed Alpha 7 38660 | -2/Section 7 | Destroyed S7 Guard 38707 | -2/Section 7 | Spotted B-90 Cyclops 38715 | -2/Section 7 | Found Integrated Reactor 38715 | -2/Section 7 | Installed Integrated Reactor, increased core energy generation (+2%) 38739 | -2/Section 7 | Spotted B-99 Colossus 38747 | -2/Section 7 | Found Integrated Dissipator 38747 | -2/Section 7 | Installed Integrated Dissipator, increased core heat dissipation (+2%) 38755 | -2/Section 7 | Found LRC Storage 38755 | -2/Section 7 | Installed LRC Storage, increased inventory capacity (+2) 38816 | -2/Section 7 | Found Sigix Quantum Sheargun 38817 | -2/Section 7 | Found Sigix Quantum Sheargun 38829 | -2/Section 7 | Found Matter Drive 38840 | -2/Section 7 | Found Transdimensional Reconstructor 38842 | -2/Section 7 | Found Hpw. Transdimensional Reconstructor 38887 | -2/Section 7 | Garrison activated, responded to threat 39264 | -2/Section 7 | Destroyed B-90 Cyclops 39545 | -2/Section 7 | Entered Access 39545 | -1/Access | Accompanied by 7 allies 39547 | -1/Access | Reached level 35 39986 | -1/Access | Fabricated Cld. Q-thruster? 40024 | -1/Access | Found Molecular Scythe 40085 | -1/Access | Identified exit to Command 40127 | -1/Access | Fabricated Cld. Q-thruster? 40228 | -1/Access | Fabricated System Restoration Module? 40243 | -1/Access | Local fabrication network quarantined 40249 | -1/Access | Upgraded with Utility slot (x1) 40295 | -1/Access | First assault squad dispatched 40880 | -1/Access | Discovered new exit (range 20) 40924 | -1/Access | Garrison activated, responded to threat 40970 | -1/Access | Reached level 36 41020 | -1/Access | Spotted B-99 Colossus 41823 | -1/Access | Garrison activated, responded to threat 41865 | -1/Access | P-80 Master assimilated hostile G-73 Enforcer 41867 | -1/Access | P-80 Master assimilated hostile G-73 Enforcer 42680 | -1/Access | Incoming assault squad redirected 42680 | -1/Access | Reached level 37 42746 | -1/Access | Entered Command 42746 | -1/Command | Accompanied by 7 allies 43361 | -1/Command | Disengaged cave seal 43368 | -1/Command | Discovered new exit (range 13) 43637 | -1/Command | Disengaged cave seal 45159 | -1/Command | Spotted Alpha 7 45167 | -1/Command | Found Exp. Core Analyzer 45182 | -1/Command | Spotted Striker 45187 | -1/Command | Destroyed Striker 45192 | -1/Command | Spotted Executioner 45195 | -1/Command | Spotted Alpha 7 45199 | -1/Command | Destroyed Executioner 45216 | -1/Command | Destroyed Alpha 7 45222 | -1/Command | Found Prototype Ballistic Gun 45224 | -1/Command | Identified Multirail 45229 | -1/Command | Found Exp. Target Analyzer 45240 | -1/Command | Found Exp. Targeting Computer 45269 | -1/Command | Spotted Executioner 45269 | -1/Command | Spotted Executioner 45269 | -1/Command | Spotted B-99 Colossus 45269 | -1/Command | Spotted B-99 Colossus 45319 | -1/Command | Destroyed Executioner 45326 | -1/Command | Destroyed Executioner 45332 | -1/Command | Befriended a Behemoth using the annoying Tinkerer's hack 45336 | -1/Command | Befriended a Behemoth using the annoying Tinkerer's hack 45337 | -1/Command | Destroyed Alpha 7 45357 | -1/Command | Found Multirail 45362 | -1/Command | Found Antimissile System 45600 | -1/Command | Build established: Hacker-Sprinter 45700 | -1/Command | Found Prototype Device 45700 | -1/Command | Identified Exp. Shock Absorption System 46039 | -1/Command | First assault squad dispatched 46070 | -1/Command | Spotted M Guard 46116 | -1/Command | Spotted Combat Programmer 46118 | -1/Command | Spotted Combat Programmer 46140 | -1/Command | Destroyed Combat Programmer 46153 | -1/Command | Spotted M Guard 46154 | -1/Command | Destroyed M Guard 46163 | -1/Command | Destroyed M Guard 46169 | -1/Command | Destroyed Combat Programmer 46169 | -1/Command | Destroyed all MAIN.C guards 46296 | -1/Command | Found Prototype Protection 46296 | -1/Command | Identified Hvy. Regenerative Plating 46302 | -1/Command | Found Prototype Device 46302 | -1/Command | Identified AEGIS Remote Shield 46311 | -1/Command | Found Zero-point Reactor 46386 | -1/Command | Met MAIN.C 46386 | -1/Command | Reached level 38 46397 | -1/Command | 0b10 Conduit disabled 46410 | -1/Command | Allies destroyed MAIN.C Shell 46413 | -1/Command | MAIN.C activated Command garrisons 46447 | -1/Command | Allies destroyed MAIN.C 46461 | -1/Command | Spotted B-99 Colossus 46606 | -1/Command | Destroyed B-99 Colossus 46611 | -1/Command | Found Multirail 46642 | -1/Command | Found Multirail 46655 | -1/Command | Destroyed B-99 Colossus 46806 | -1/Command | Destroyed 8 combat bots 46894 | -1/Command | Destroyed 8 combat bots 47032 | -1/Command | Phase Generator disabled 47141 | -1/Command | Discovered new exit (range 20) 47936 | -1/Command | Found Zero-point Reactor 48477 | *** | Establishing 0b11! Last Messages --------------- 48177_ Quantum Shear penetrates Wave Inhibitor. 48180_ Quantum Shear penetrates Wall. 48180_ Quantum Shear penetrates Wave Inhibitor. 48183_ Quantum Shear penetrates Operations Mainframe. 48185_ Quantum Shear penetrates Wall. 48185_ Quantum Shear penetrates Wave Inhibitor. 48188_ Quantum Shear penetrates Operations Mainframe. 48188_ Quantum Shear penetrates Wave Inhibitor. 48191_ Quantum Shear penetrates Operations Mainframe. 48191_ Quantum Shear penetrates Wall. 48193_ Quantum Shear penetrates Operations Mainframe. 48193_ Quantum Shear penetrates Wall. 48196_ Quantum Shear penetrates Wave Inhibitor. 48264_ Blade Trap reprogrammed. 48357_ Quantum Shear penetrates Wall. 48391_ Blade Trap reprogrammed. 48477_ Upgraded: Core Integrity (+100) 48477_ Upgraded: Matter Storage (+50) 48477_ Upgraded: Sensor Range (+2) 48477_ Upgraded: EX Resistance % (+5) Map ----- +----------------------------------------------------+ | # ##+#####" =% "### " #??? | | ## ###?# [= "#####""####+############??? | | + ""#?# ""######## #???????????? | | # ""#?# %!!! / #???????????? | | ?# "### ]]% ! #???????????? | | ?# " " !!! ! #???????????? | | ?# ""### ######??????? | | ?# ""#?# | ! # ####???? | | ?# ||! ""#?######### # # #???? | | ?# ||! ############# [! # # #####? | | ?# ||! #?# # [! # # #? | | ?# ##" # [! ! # !!!## | | ?# " #? # !==*! ]* *! | | ?# "# + | ! |= !!!!= | | ?# ! [ " " !%* * *= =[[ ! * | | ?# =% ""# ## ##"#######%# %= # ## | | ?+ ""# * ## ####?# #%[ #### #? | | ?# ### ## #????# / ! ==%! # # ####? | | ?# ! ############## #????# =% ##!###?###???? | | ?#!% % " ]]]## #?????????? | | ##+"+########################## ]]]## #?????????? | | / #?????????????????# ]]]##*#?????????? | | #?????????????????# ##%#?????????? | | #??????????######?##+##### #?????????? | | #??????????# #???????# #?????????? | | ##?????????# @ #???????# #?????????? | | ! "#?????????# #???????# #########?? | | #""###""#""""#?????????###GG#???????# # #?? | | # #"" " ##??????????#GG##????### # #?? | | ## #" " "#??????????# ## ?? # # #?? | | ?# #" " "#??????????# ## ? # + #?? | | ?# "" " ##??????????# ## #% # #?? | | ?# "" " #???????????# ;# # # #?? | | ###"#"""""" #?????####### ## # # #?? | | "##"#"""""" #?##### # # # #?? | | " ^ "" #?# " # + #?? | | " "" #?# # # # #?? | | " " "" #?# # # # !! #?? | | " " "" #?# # # # !! #?? | | " ^" "" #?# " # # # #?? | | " " "" #?# # # # #?? | | " "" #?# # + # #?? | | " ^ "" ### # # # #?? | | " " * ######## # #?? | | """""""""" % #########?? | | #" #?????????? | | #" ########+######?????? | | " ! # #?????? | | " %= # #?????? | | #" # #?????? | +----------------------------------------------------+ Best States ------------- Heat Dissipation 145 Coolant Potential 120 Energy Generation 97 Energy Capacity 3100 Matter Stores 400 Matter Capacity 550 Sight Range 25 Robot Scan Range 24 Terrain Scan Range 30 Terrain Scan Density 310 Jamming Range 8 Additional Mass Support 20 Armor Coverage 1000 Resistance: KI 30 Resistance: TH 20 Resistance: EX 75 Resistance: EM 75 Weapon Shielding 100 Point Defense Rating 240 Melee Speed Boost 30 Phase Shifting 20 Evasion (%) 101 Targeting Accuracy 8 Target Analysis 12 Core Analysis 15 Armor Integrity Analysis 66 Energy Filtering 50 Particle Charging 25 Offensive Hacking 50 Defensive Hacking 36 Item Schematics ----------------- Enh. Autogun | -8/Materials | Scanalyzed Hyp. Coil Gun | -7/Factory | Hacked Lrn. Missile Launcher | -7/Factory | Hacked Combat Drone Bay | -7/Data Miner | Free Lgt. Regenerative Plating | -7/Data Miner | Free Exp. Flexi-carbon Leg | -7/Data Miner | Free Exp. Targeting Computer | -7/Data Miner | Free Exp. Transmission Jammer | -7/Data Miner | Free Exp. ECM Suite | -7/Data Miner | Free Plasma Sword | -7/Data Miner | Free Kinetic Spear | -7/Data Miner | Free Adv. Variable Charge Gun | -6/Factory | Hacked Adv. Hacking Suite | -6/Factory | Hacked Adv. System Shield | -6/Factory | Hacked Imp. Powered Armor | -6/Factory | Hacked Imp. System Backup Module | -6/Factory | Hacked Exp. Hacking Suite | -5/Factory | Hacked Cld. Proton Cannon | -5/Factory | Hacked Nuclear Pulse Array | -5/Factory | Hacked Enh. Coil Gun | -5/Factory | Scanalyzed Exp. Terrain Scanner | -5/Extension | Hacked Exp. Cesium-ion Thruster | -5/Extension | Hacked Q-thruster | -4/Factory | Hacked Nanosword | -4/Factory | Hacked Exp. System Shield | -4/Factory | Hacked Exp. Actuator Array | -3/Testing | Hacked Cld. Q-thruster | -2/Research | Hacked Lgt. Quantum Reactor | -2/Research | Hacked Exp. Cloaking Device | -2/Section 7 | Hacked Adv. Heavy Siege Treads | -2/Section 7 | Hacked Hdn. Centrium Leg | -2/Section 7 | Hacked Stasis Projector | -2/Section 7 | Hacked Adv. Powered Armor | -1/Access | Hacked System Restoration Module | -1/Access | Hacked Robot Schematics ------------------ M-28 Smith | -7/Factory | Hacked S-27 Virus | -7/Data Miner | Free G-50 Soldier | -7/Data Miner | Free G-67 Veteran | -7/Data Miner | Free L-41 Fighter | -7/Data Miner | Free I-36 Angel | -7/Data Miner | Free I-47 Archangel | -7/Data Miner | Free P-70 Sage | -6/Factory | Hacked M-36 Artificer | -5/Factory | Hacked P-60 Hacker | -4/Factory | Hacked T-07 Excavator | -4/Factory | Hacked P-80 Master | -4/Factory | Hacked M-13 Machinist | -4/Factory | Hacked Y-72 Warden | -3/Research | Hacked A-15 Conveyor | -3/Testing | Hacked S-43 Plague | -2/Quarantine | Hacked C-55 Analyst | -1/Access | Hacked Fabricated ------------ M-28 Smith | x1 | -7/Factory M-28 Smith | x1 | -7/Factory M-28 Smith | x1 | -7/Factory P-70 Sage | x2 | -6/Factory Imp. Powered Armor | x1 | -6/Factory I-47 Archangel | x1 | -6/Factory I-47 Archangel | x1 | -6/Factory M-36 Artificer | x1 | -5/Factory Cld. Proton Cannon | x1 | -5/Factory Imp. System Backup Module | x2 | -5/Factory Enh. Coil Gun | x1 | -5/Factory Cld. Proton Cannon | x1 | -5/Factory Q-thruster | x2 | -4/Factory Nanosword | x1 | -4/Factory Exp. Terrain Scanner | x1 | -4/Factory Exp. Hacking Suite | x1 | -4/Factory P-80 Master | x2 | -4/Factory M-36 Artificer | x1 | -4/Factory M-36 Artificer | x1 | -3/Research C-55 Analyst | x1 | -3/Research | Preloaded M-36 Artificer | x1 | -3/Testing A-15 Conveyor | x1 | -3/Testing P-80 Master | x2 | -3/Testing Cld. Q-thruster | x1 | -2/Research Cld. Q-thruster | x1 | -1/Access Cld. Q-thruster | x1 | -1/Access System Restoration Module | x2 | -1/Access Alien Tech Used ----------------- Sigix Broadsword Integrated Dissipator Integrated Singularity Reactor Integrated Reactor LRC Storage Matter Drive Sigix Quantum Sheargun Achievements -------------- Guerrilla Style Supersonic Use The Force Challenges ------------ None RPGLIKE | -11 -10 -10 -10 -9 -8 -7 -7 -7 -7 -7 -7 -6 -6 -6 -6 -6 -6 -6 -6 -5 -5 -5 -5 -5 -5 -5 -5 -4 -4 -4 -4 -4 -4 -3 -3 -3 -3 -2 -2 -2 -1 -1 --------- Run | Scr Mat Min Exi Min Mat Fac Was Fac Low Low Dat Pro Fac Was Fac Low Low Zio Dee Pro Fac Was Fac Ext Cet Arc Hub Fac Was Fac Upp Upp War Pro Res Tes Gar Res Qua Sec Acc Com Levels Raised 37 | . . 2 . 1 4 4 . 4 1 . . 2 2 . 1 . . . . 1 1 . 1 . . . 1 1 . 1 . . 1 . 1 1 . 2 . 1 3 1 XP Earned 59686 | 3000 1305 2450 350 950 5635 6422 200 5808 954 714 152 3442 1728 41 1353 321 154 73 227 826 2040 52 1029 767 284 161 687 1451 32 1376 316 297 431 1016 1155 898 1007 2210 988 1031 3757 2596 XP Spent 58500 | 2350 500 1350 . 1900 7200 4385 1750 3805 525 . . 3025 6200 . . . . . 1290 . 1620 . 2300 . 800 . 150 2170 . 1180 . . . 2300 . 2600 . 1100 2250 . 2900 4850 Upgrades 109 | 10 1 2 . 4 12 12 1 12 2 . . 6 6 . . . . . 4 . 3 . 2 . 1 . 1 2 . 5 . . . 1 . 1 . 1 1 . 1 18 Power Slot 1 | . . . . . . . . . . . . . . . . . . . 1 . . . . . . . . . . . . . . . . . . . . . . . Propulsion Slot 5 | . 1 . . 1 . . . 1 . . . . . . . . . . . . 1 . 1 . . . . . . . . . . . . . . . . . . . Utility Slot 9 | 1 . . . 1 1 1 . 1 . . . . . . . . . . . . . . . . . . . 1 . . . . . 1 . 1 . . . . 1 . Weapon Slot 3 | 1 . . . . . . . . . . . . . . . . . . . . . . . . 1 . . . . . . . . . . . . 1 . . . . Core Integrity 22 | . . . . . . . . 8 . . . . . . . . . . . . . . . . . . . . . 4 . . . . . . . . . . . 10 Heat Dissipation 7 | . . . . . 1 2 . . . . . . . . . . . . 2 . . . . . . . 1 1 . . . . . . . . . . . . . . Energy Generation 2 | . . . . . . 1 . . . . . . . . . . . . 1 . . . . . . . . . . . . . . . . . . . . . . . Matter Storage 1 | . . . . . . . . . . . . . . . . . . . . . . . . . . . . . . . . . . . . . . . . . . 1 Mass Support 2 | 1 . 1 . . . . . . . . . . . . . . . . . . . . . . . . . . . . . . . . . . . . . . . . Inventory Capacity 9 | 2 . 1 . . 3 . 1 . . . . . 1 . . . . . . . . . . . . . . . . . . . . . . . . . 1 . . . Sight Range 2 | . . . . . 1 . . 1 . . . . . . . . . . . . . . . . . . . . . . . . . . . . . . . . . . Sensor Range 13 | 5 . . . . . 2 . 1 2 . . 2 . . . . . . . . . . . . . . . . . . . . . . . . . . . . . 1 Terrain Scan Density 3 | . . . . . . 1 . . . . . . . . . . . . . . 2 . . . . . . . . . . . . . . . . . . . . . Ranged Accuracy 4 | . . . . . . 1 . . . . . 1 . . . . . . . . . . 1 . . . . . . 1 . . . . . . . . . . . . Melee Accuracy 4 | . . . . . . 1 . . . . . 1 2 . . . . . . . . . . . . . . . . . . . . . . . . . . . . . Hack Attack % 6 | . . . . . 1 2 . . . . . 1 2 . . . . . . . . . . . . . . . . . . . . . . . . . . . . . Hack Defense % 4 | . . . . . 1 1 . . . . . 1 1 . . . . . . . . . . . . . . . . . . . . . . . . . . . . . KI Resistance % 4 | . . . . 1 2 . . . . . . . . . . . . . . . . . . . . . . . . . . . . . . . . . . . . 1 TH Resistance % 4 | . . . . 1 2 . . . . . . . . . . . . . . . . . . . . . . . . . . . . . . . . . . . . 1 EX Resistance % 4 | . . . . . . . . . . . . . . . . . . . . . . . . . . . . . . . . . . . . . . . . . . 4 Protomatter Created 9213 | . 142 129 . 46 430 370 267 82 40 76 . 239 499 89 220 182 15 . 173 23 902 88 33 212 223 240 628 219 . 152 . 108 98 245 310 54 210 37 66 155 778 1433 Integrity Restored 20220 | . 259 342 . 237 1166 1045 149 477 295 90 . 710 1025 . 475 70 45 . 486 48 2109 297 243 528 416 188 676 770 . 322 . 77 99 294 633 158 809 270 314 846 1946 2306 Core 14936 | . 256 248 . 237 1015 995 111 348 211 60 . 477 692 . 345 53 45 . 405 48 1644 144 216 341 355 17 485 549 . 241 . 51 61 256 417 81 554 233 222 714 1611 1198 Parts 5284 | . 3 94 . . 151 50 38 129 84 30 . 233 333 . 130 17 . . 81 . 465 153 27 187 61 171 191 221 . 81 . 26 38 38 216 77 255 37 92 132 335 1108 Protomatter Decayed 19265 | . 55 13 . 59 34 . 72 273 107 137 . 276 273 177 828 69 99 38 172 . 163 68 306 429 82 92 572 361 164 935 . 313 637 152 1472 169 772 1689 40 143 999 7025 Game ------ Seed VortexSalvageTorch Manual? 0 Play Time 22:38:22 Cumulative 151.3 hours Start 2020.03.01 @ 20:38:06 End 2020.03.17 @ 17:13:04 Sessions 177 Manual Loads 0 Difficulty Rogue Special Mode Winter2019/RPGLIKE Game No. 69 Rogue 69 Adventurer 0 Explorer 0 Win Type 1 Total 4 Types 2/1/0/1/0/0/0 Lore% 67 Gallery% 71 Achievement% 68 Wizard Run 0 Options --------- ASCII 0 Keyboard 0 Movement Numpad Keybinds 0 Fullscreen 1 Font 18/SmallcapsGlow Map View 76x50 Tactical HUD 1 Map Filters NONE Filters NONE Steam 1 RUN: 0ffb9d09-8b56-48fb-99a4-5e8e090c5714